Cogmind - Beta 16 @@@ ROGUE MODE // 2025.11.17 @ 17:18:21 Player: Cherman0 Result: Destroyed by P-80 Master with Gamma Rifle Performance ------------- Evolutions (7) 3500 Regions Visited (30) 6000 Robots Destroyed (521) 2605 Value Destroyed (21396) 21396 Prototype IDs (99) 1980 Alien Tech Used (0) 0 Bonus (9780) 9780 TOTAL SCORE: 45261 Bonus ------- High Alert Combat Kills 933 Follower Combat Kills 1869 Awakened Behemoth Slayer 1000 Entered Garrisons 200 Network Hubs Disabled 400 Met Data Miner 300 Met Imprinter 300 Acquired ECA 300 MAIN.C Attacked Warlord 500 Warlord Defense Kills 1372 Built Enhanced Grunts 300 Met R17 at Cetus 500 Met R17 at Research 2000 Friendly Fire -194 Cogmind --------- Core Integrity 0/1300 Matter 197/300 Energy 11/100 System Corruption 13% Temperature Cool (0) Movement Core (50) Location -3/Testing Parts ------- > --- POWER (3) -------- (None) > --- PROPULSION (5) --- (None) > --- UTILITY (11) ----- Spectral Analyzer Experimental Signal Interpreter Experimental Terrain Scan Processor Experimental Targeting Computer > --- WEAPON (2) ------- (None) > --- INVENTORY (5) ---- Advanced Coolant Injector Graphene Brace Force Rifle CR-A16's Behemoth Slayer Peak State ------------ > --- POWER ------------ Light Antimatter Reactor Particle Reactor Improved Quantum Reactor > --- PROPULSION ------- Medium Treads Centrium Heavy Treads Centrium Heavy Treads > --- UTILITY ---------- Advanced Cooling System Huge Storage Unit Experimental Sensor Array Experimental Signal Interpreter Experimental Targeting Computer Experimental Core Analyzer Quantum Capacitor Advanced Transmission Jammer Centrium Medium Armor Plating Experimental Hacking Suite > --- WEAPON ----------- Advanced Plasma Rifle CR-A16's Behemoth Slayer > --- INVENTORY -------- Centrium Heavy Treads Centrium Heavy Treads Improved Cooling System Advanced Cooling System Advanced Coolant Injector Advanced Energy Well Experimental Matter Compressor Improved Terrain Scanner Experimental Terrain Scan Processor Seismic Detector Centrium Medium Armor Plating Centrium Medium Armor Plating Graphene Brace Advanced Force Field Advanced Force Field Advanced Point Defense System Mini Drone Bay Force Rifle Advanced Plasma Rifle Precision Rocket Launcher Neutron Missile Launcher Improved Datajack Plasma Cutter [Rating: 177] Favorites ----------- Power Light Neutrino Core Engine Reinforced Deuterium Engine Power Core Light Neutrino Core Reactor Vortex Chain Reactor Propulsion Light Treads Treads Light Treads Leg Aluminum Leg Wheel Wheel Hover Unit Cooled Antigrav System Flight Unit Electron Diverter Utility Huge Storage Unit Device Seismic Detector Storage Huge Storage Unit Processor Experimental Targeting Computer Hackware Experimental Hacking Suite Protection Improved Light Armor Plating Weapon Advanced Plasma Rifle Energy Gun Advanced Plasma Rifle Energy Cannon Heavy Particle Cannon Ballistic Gun Heavy Assault Rifle Ballistic Cannon Gauss Cannon Launcher Neutron Missile Launcher Special Weapon RU-N14's Throwing Claymores v3 Impact Weapon Great Maul Slashing Weapon Phasing Sabre Piercing Weapon CR-A16's Behemoth Slayer Special Melee Weapon Improved Datajack Build | -11 -10 -10 -9 -9 -9 -8 -8 -8 -7 -7 -7 -7 -6 -6 -6 -6 -6 -5 -5 -5 -5 -5 -4 -4 -4 -4 -4 -4 -3 -3 ------- Run | Yrd Mat Min Mat Min Exi Min Mat Gar Fac Low Low Zio Pro Fac Low Low Dat Pro Fac Upp Upp War Pro Fac Ext Cet Arc Hub Res Tes Slots Evolved 14 | . . . 2 . . . 2 . 2 . . . . 2 . . . . 2 . . . . 2 . . . . 2 . Power 2 | . . . . . . . . . . . . . . 1 . . . . . . . . . . . . . . 1 . Propulsion 3 | . . . 1 . . . . . 1 . . . . . . . . . . . . . . . . . . . 1 . Utility 9 | . . . 1 . . . 2 . 1 . . . . 1 . . . . 2 . . . . 2 . . . . . . Weapon . | . . . . . . . . . . . . . . . . . . . . . . . . . . . . . . . Parts Attached 293 | 4 17 2 34 2 2 2 39 8 32 5 13 6 16 10 8 5 . 2 9 3 3 9 1 6 9 15 1 3 12 15 Power 30 | . 2 . 4 . . . 1 1 1 . 3 . 1 2 1 1 . . 1 1 . 2 . . . 4 . . 4 1 Engine 7 | . 2 . 3 . . . . . 1 . . . . . 1 . . . . . . . . . . . . . . . Core 11 | . . . 1 . . . 1 1 . . 3 . 1 2 . 1 . . 1 . . . . . . . . . . . Reactor 12 | . . . . . . . . . . . . . . . . . . . . 1 . 2 . . . 4 . . 4 1 Propulsion 79 | 2 1 1 12 1 . 1 17 5 6 1 4 . 5 3 3 2 . 1 1 . . 2 . . 1 3 . 1 2 4 Treads 71 | 2 1 1 12 1 . 1 17 5 6 1 4 . 4 1 3 2 . 1 1 . . . . . 1 3 . 1 2 1 Leg 1 | . . . . . . . . . . . . . . . . . . . . . . 1 . . . . . . . . Wheel 5 | . . . . . . . . . . . . . . 2 . . . . . . . . . . . . . . . 3 Hover 1 | . . . . . . . . . . . . . 1 . . . . . . . . . . . . . . . . . Flight 1 | . . . . . . . . . . . . . . . . . . . . . . 1 . . . . . . . . Utility 109 | 1 7 1 7 1 1 1 13 . 10 3 4 4 3 4 3 2 . . 7 2 2 1 1 4 8 6 1 1 6 5 Device 53 | 1 1 . 2 1 . 1 4 . 4 2 2 2 2 1 2 2 . . 4 . 2 1 1 2 5 1 1 1 5 3 Storage 7 | . 3 . . . 1 . . . 3 . . . . . . . . . . . . . . . . . . . . . Processor 8 | . . . . . . . . . 2 . . 2 . . . . . . 1 . . . . 1 . . . . . 2 Hackware 4 | . . . . . . . 2 . . . . . . 1 . . . . 1 . . . . . . . . . . . Protection 37 | . 3 1 5 . . . 7 . 1 1 2 . 1 2 1 . . . 1 2 . . . 1 3 5 . . 1 . Artifact . | . . . . . . . . . . . . . . . . . . . . . . . . . . . . . . . Weapon 75 | 1 7 . 11 . 1 . 8 2 15 1 2 2 7 1 1 . . 1 . . 1 4 . 2 . 2 . 1 . 5 Energy Gun 24 | 1 2 . 2 . . . 1 . 8 . 1 . 4 . 1 . . . . . . . . 1 . 1 . . . 2 Energy Cannon 13 | . . . 1 . . . 5 1 2 . . . 1 . . . . . . . 1 . . . . . . 1 . 1 Ballistic Gun 15 | . 2 . 6 . . . 2 . 1 1 . . 1 . . . . . . . . . . . . 1 . . . 1 Ballistic Cannon 1 | . . . . . . . . . 1 . . . . . . . . . . . . . . . . . . . . . Launcher 6 | . 2 . 1 . . . . . 2 . . . . 1 . . . . . . . . . . . . . . . . Special Weapon 5 | . 1 . . . . . . . . . . 1 . . . . . . . . . 3 . . . . . . . . Impact Weapon 4 | . . . 1 . . . . . . . 1 . . . . . . . . . . . . 1 . . . . . 1 Slashing Weapon 1 | . . . . . . . . . . . . . . . . . . 1 . . . . . . . . . . . . Piercing Weapon 3 | . . . . . . . . . . . . 1 1 . . . . . . . . 1 . . . . . . . . Special Melee Weapon 3 | . . . . . 1 . . 1 1 . . . . . . . . . . . . . . . . . . . . . Unidentified Prototypes 42 | . 1 . 4 1 . . 2 . 8 . . 1 4 1 . . . . 2 . . 7 . . . 4 . . . 7 Parts Lost 82 | . 2 . 7 . . . 6 2 8 . 9 . 8 7 1 1 . . 1 3 . . . . 1 1 . 2 18 5 Power 13 | . 1 . 1 . . . 1 . 1 . 1 . . 1 . . . . . . . . . . . . . 1 5 1 Propulsion 26 | . . . 2 . . . 1 1 3 . 4 . 4 3 1 . . . . . . . . . . 1 . . 5 1 Utility 30 | . . . 2 . . . 3 1 3 . 3 . 2 3 . 1 . . . 3 . . . . 1 . . . 6 2 Weapon 13 | . 1 . 2 . . . 1 . 1 . 1 . 2 . . . . . 1 . . . . . . . . 1 2 1 Highest Loss Streak 13 | . 1 . 6 . . . 2 1 3 . 4 . 5 2 1 1 . . 1 3 . . . . 1 1 . 1 13 5 To Critical Strikes 1 | . . . . . . . . . . . . . . . . . . . . . . . . . . 1 . . . . Average Backups 23 | 6 12 25 24 24 25 25 24 24 24 25 21 23 24 24 24 24 24 24 24 23 25 24 24 24 24 23 23 22 22 4 Power . | 1 . . . 1 1 1 . . 1 3 2 1 1 . . . 1 1 1 1 1 1 1 1 1 1 1 . . . Propulsion 3 | 4 3 5 4 4 4 4 4 6 4 4 2 3 . . . 1 2 2 3 4 4 3 3 3 2 1 2 2 1 . Utility 8 | . 3 5 7 7 8 8 5 4 7 9 7 9 10 12 13 12 11 11 9 8 10 10 10 10 10 11 12 12 14 2 Weapon 8 | 1 4 14 10 10 10 10 12 12 9 7 7 8 9 8 9 8 9 8 8 8 8 8 7 7 8 8 7 6 3 2 Tool/Special . | . . . . . . . . . . . . . . . . . . . . . . . . . . . . . . . Unused Backups 67 | 1 10 1 11 1 . 1 10 1 4 . . 5 . 1 . 2 . 2 2 1 . 1 . 5 1 1 . . 5 1 Power 1 | . . . . . . . . . . . . . . . . . . . 1 . . . . . . . . . . . Propulsion 7 | . 2 . . . . . 1 . . . . . . . . . . 1 . . . . . 1 1 1 . . . . Utility 27 | . 3 . 2 1 . 1 . . 1 . . 5 . 1 . 1 . 1 1 . . . . 4 . . . . 5 1 Weapon 32 | 1 5 1 9 . . . 9 1 3 . . . . . . 1 . . . 1 . 1 . . . . . . . . Tool/Special . | . . . . . . . . . . . . . . . . . . . . . . . . . . . . . . . Average Slot Usage (%) 93 | . 99 100 99 100 99 100 99 100 99 100 98 99 91 94 99 100 100 96 89 83 82 77 76 77 77 79 84 83 78 41 Engine 4 | . 13 14 9 11 11 11 4 . 2 7 1 . . . 4 6 6 6 5 5 5 1 . . . . . . . . Core 3 | . . . 1 . . . 4 9 4 . 5 7 7 13 7 6 6 6 5 . . 1 . . . . . . . . Reactor 1 | . . . . . . . . . . . . . . . . . . . . 4 5 3 5 5 5 5 10 10 11 2 Treads 23 | . 27 28 32 33 33 33 27 27 29 30 29 30 25 20 15 26 26 22 12 11 11 10 11 10 10 10 10 10 10 3 Device 15 | . 12 . 8 2 . 5 17 18 10 14 22 22 22 22 19 19 20 20 21 17 16 16 13 19 20 15 15 17 18 5 Storage 7 | . 14 14 11 11 11 11 9 9 7 7 7 7 7 6 6 6 6 6 5 5 5 5 5 5 5 5 5 5 3 . Processor 6 | . . . . . . . . . 9 15 8 7 7 6 6 6 6 6 11 11 11 11 11 14 15 15 15 15 13 18 Hackware 3 | . . . . . . . 8 9 3 . . . . 3 6 6 6 6 5 5 5 5 5 5 5 5 5 5 4 3 Protection 8 | . 1 13 13 19 21 16 9 9 12 7 4 7 7 6 6 6 6 6 5 5 5 5 8 6 5 9 10 8 3 . Energy Gun 7 | . 13 13 . . . . . . 11 11 14 3 9 12 12 12 . 12 10 9 10 5 8 9 5 5 5 3 3 . Energy Cannon 2 | . . . . . . . 16 15 2 . . . . . . . . . . . . . . . . . . 2 . . Ballistic Gun 4 | . 13 13 20 22 3 22 1 . . . . . . . . . . . . . . . . . . . . . . . Peak Build Rating 177 | 8 13 14 23 29 24 24 40 37 63 61 62 64 68 83 86 88 83 93 117 119 123 135 135 150 153 163 159 168 177 98 Average Rating 68 | 6 9 12 19 22 23 23 30 34 49 57 52 54 62 79 82 84 79 88 109 116 118 123 131 146 145 151 157 160 165 64 On Entrance 75 | 6 8 12 14 21 24 24 22 36 37 61 60 53 63 67 79 80 79 83 91 110 119 121 130 135 148 143 157 157 151 40 Avg Prop Armor Cover (%) 15 | . . . . . . . . . . . . . . 14 13 . . . . . . . . . . . . . . 22 Naked Turns . | . . . . . . . . . . . . . . . . . . . . . . . . . . . . . . . Heaviest Build 163 | 15 91 100 104 100 100 100 117 112 119 116 116 107 117 120 132 134 131 130 144 145 139 163 163 154 148 149 149 154 158 21 Greatest Support 188 | 40 40 40 60 60 60 60 62 62 104 104 98 91 99 88 93 98 90 120 150 150 150 150 150 150 150 160 160 160 188 30 Greatest Overweight (x) 6 | . 2 2 2 1 1 1 1 1 1 1 1 1 1 5 6 1 1 1 1 . . 1 1 1 . 1 . . 1 2 Average Overweight (x) . | . . 2 1 1 1 1 1 1 1 1 . 1 1 1 4 1 1 1 . . . . . . . . . . . . Largest Inventory Capacity 25 | 8 25 25 25 25 25 25 25 25 25 25 25 25 25 25 25 25 25 25 25 25 25 25 25 25 25 25 25 25 25 5 Average Capacity 24 | 8 13 25 25 25 25 25 25 25 25 25 25 25 25 25 25 25 25 25 25 25 25 25 25 25 25 25 25 25 24 5 Most Carried 25 | 8 25 25 25 25 25 25 25 25 25 25 25 25 25 25 25 25 24 25 25 25 25 25 25 25 25 25 25 25 25 5 Average Carried 23 | 6 12 24 24 24 25 24 24 24 24 25 24 24 24 24 24 24 24 24 24 23 25 24 24 24 24 24 25 24 23 4 Final Capacity 25 | 8 25 25 25 25 25 25 25 25 25 25 25 25 25 25 25 25 25 25 25 25 25 25 25 25 25 25 25 25 5 5 Final Carried 25 | 8 25 25 25 25 25 25 25 25 25 25 25 25 25 24 25 24 24 25 25 25 25 24 25 25 25 25 25 24 5 4 Class Distribution -------------------- 55% | Mutant 43% | Scavenger-Mutant Dominant Class ---------------- Mutant | -10/Materials Mutant | -10/Mines Mutant | -9/Materials Mutant | -9/Mines Mutant | -9/Exiles Mutant | -8/Mines Mutant | -8/Materials Scavenger-Mutant | -8/Garrison Mutant | -7/Factory Mutant | -7/Lower Caves Scavenger-Mutant | -7/Lower Caves Scavenger-Mutant | -7/Zion Mutant | -6/Proximity Caves Scavenger-Mutant | -6/Factory Scavenger-Mutant | -6/Lower Caves Scavenger-Mutant | -6/Lower Caves Scavenger-Mutant | -6/Data Miner Scavenger-Mutant | -5/Proximity Caves Mutant | -5/Factory Mutant | -5/Upper Caves Mutant | -5/Upper Caves Mutant | -5/Warlord Mutant | -4/Proximity Caves Mutant | -4/Factory Mutant | -4/Extension Scavenger-Mutant | -4/Cetus Scavenger-Mutant | -4/Archives Scavenger-Mutant | -4/Hub_04(d) Scavenger-Mutant | -3/Research Assassin | -3/Testing Resources | -11 -10 -10 -9 -9 -9 -8 -8 -8 -7 -7 -7 -7 -6 -6 -6 -6 -6 -5 -5 -5 -5 -5 -4 -4 -4 -4 -4 -4 -3 -3 ----------- Run | Yrd Mat Min Mat Min Exi Min Mat Gar Fac Low Low Zio Pro Fac Low Low Dat Pro Fac Upp Upp War Pro Fac Ext Cet Arc Hub Res Tes Matter Collected 14128 | 273 533 179 1175 266 . 242 732 327 1426 362 545 86 812 361 175 854 . 538 356 1106 388 945 117 272 378 225 40 685 659 71 Remotely . | . . . . . . . . . . . . . . . . . . . . . . . . . . . . . . . Salvage Created 21571 | 193 897 180 1671 412 . 281 2788 1391 1936 776 1091 . 1104 1515 145 868 . 353 1011 537 194 372 360 452 786 210 127 1248 528 145 Parts 1012 | 20 62 32 116 14 . 18 144 64 84 47 54 . 27 41 13 32 . 11 36 15 1 13 13 28 28 14 6 54 16 9 Haulers Intercepted 24 | . 2 . 6 . . . 6 . 4 . . . . 2 . . . . 2 . . . . . . . . 1 1 . Recyclers Shooed 8 | 1 . . . . . . 3 . . . . . . 1 . . . . 1 . . . . 1 1 . . . . . Parts Field Recycled . | . . . . . . . . . . . . . . . . . . . . . . . . . . . . . . . Retrieved Matter . | . . . . . . . . . . . . . . . . . . . . . . . . . . . . . . . Parts Self-Destructed 171 | . . . . . . . . . . 46 39 . 18 . 9 31 . 7 . 8 1 . 12 . . . . . . . Prevented 12 | . . . . . . . . . . . 2 . 3 . . 2 . 4 . 1 . . . . . . . . . . Parts Restored . | . . . . . . . . . . . . . . . . . . . . . . . . . . . . . . . Kills | -11 -10 -10 -9 -9 -9 -8 -8 -8 -7 -7 -7 -7 -6 -6 -6 -6 -6 -5 -5 -5 -5 -5 -4 -4 -4 -4 -4 -4 -3 -3 ------- Run | Yrd Mat Min Mat Min Exi Min Mat Gar Fac Low Low Zio Pro Fac Low Low Dat Pro Fac Upp Upp War Pro Fac Ext Cet Arc Hub Res Tes Combat Hostiles Destroyed 393 | . 18 10 31 10 . 4 39 28 34 16 25 . 15 19 4 21 . 9 14 21 . 13 9 10 9 2 1 19 10 2 Guns 172 | . 17 7 25 10 . 4 1 . 15 16 13 . 2 16 . 8 . 4 13 1 . 2 2 3 5 2 1 3 2 . Cannons 72 | . . . . . . . 33 25 4 . . . . . . . . . . . . 1 . 2 . . . 7 . . AOE 114 | . 1 3 6 . . . . 2 12 . 12 . 9 1 3 10 . 5 . 18 . 10 6 4 . . . 5 7 . Classes Destroyed 27 | 2 6 . 3 2 . . 2 1 4 . 2 . 2 . . . . . . . . . . . . . . 1 2 . Worker 22 | . . . 4 . . 1 5 . 2 . . . . . . . . . . . . . . 3 . . . 6 1 . Builder 15 | . 1 . 2 . . 1 3 . . . . . . 2 . . . . 1 . . . . 1 . . . 2 1 1 Tunneler 14 | 5 2 4 . . . 1 . . 1 . . . . . . . . . . . . . . . . . . 1 . . Hauler 24 | . 2 . 6 . . . 6 . 4 . . . . 2 . . . . 2 . . . . . . . . 1 1 . Recycler 9 | 1 . . . . . 1 3 . 2 . . . . 1 . . . . . . . . . . . . . 1 . . Minesweeper 2 | . . . . . . . . . . . 1 . . . . . . . . 1 . . . . . . . . . . Mechanic 2 | . . . . . . . . . 1 . . . . . . . . . . . . . . 1 . . . . . . Operator 9 | . 3 . 2 . . . 1 . . . . . . . . . . . . . . . . . 1 . 1 1 . . Drone 2 | . . . . . . . . . . . . . 2 . . . . . . . . . . . . . . . . . Watcher 30 | . 2 . 5 . . . 4 1 4 . . . . 2 . . . . 4 . . . . 2 2 1 . 2 1 . Swarmer 66 | . 3 10 4 . . 2 . . . 7 10 . . 2 3 . . 5 5 11 . . . 4 . . . . . . Cutter 5 | . . . . . . . . . . . . . . . . . . . . . . . . . . . . 5 . . Grunt 196 | . 15 . 14 8 . 3 23 22 16 6 11 . 7 6 . 11 . 2 6 8 . 9 6 3 5 . . 9 5 1 Brawler 9 | . . . . 1 . . . . 2 1 . . 1 1 . 1 . . . 1 . . 1 . . . . . . . Duelist 14 | . . . 3 . . . 2 1 . . 1 . . 1 . 4 . . . . . 1 . . . . . . . 1 Protector 4 | . . . . . . . . . 1 . . . . . . 1 . . . . . 2 . . . . . . . . Sentry 39 | . . . 10 . . . 9 4 1 1 2 . 1 4 . 1 . . . 1 . . . 1 2 . 1 . 1 . Demolisher 1 | . . . . . . . . 1 . . . . . . . . . . . . . . . . . . . . . . Specialist 7 | . . . . . . . 4 . 3 . . . . . . . . . . . . . . . . . . . . . Hunter 23 | . . . . . . . . . 7 . 1 . 2 2 . 1 . 2 3 . . . . . . . . 3 2 . Programmer 16 | . . . . . . . . . 3 1 . . 1 3 . 1 . . . . . . 2 2 1 . . 2 . . Heavy 2 | . . . . . . . 1 . 1 . . . . . . . . . . . . . . . . . . . . . Behemoth 4 | . . . . . . . . . . . . . 1 . 1 . . . . . . 1 . . 1 . . . . . Cetus Guard 2 | . . . . . . . . . . . . . . . . . . . . . . . . . . 2 . . . . Striker 1 | . . . . . . . . . . . . . . . . . . . . . . . . . . . . . 1 . Executioner 1 | . . . . . . . . . . . . . . . . . . . . . . . . . . . . . 1 . Packrat 1 | . . . . . . . . . . . 1 . . . . . . . . . . . . . . . . . . . Assembled 1 | . . . . 1 . . . . . . . . . . . . . . . . . . . . . . . . . . Mutant 2 | . . . . . . . . . . . 1 . . . . 1 . . . . . . . . . . . . . . Best Kill Streak 11 | 5 4 3 10 3 . 3 4 5 6 3 6 . 4 3 3 9 . 5 11 4 . 5 4 9 4 2 1 11 6 2 Combat Bots Only 9 | . 4 3 7 3 . 2 3 5 5 3 6 . 4 3 3 9 . 5 9 4 . 5 4 9 3 1 1 7 6 2 Max Kills in Single Turn 5 | 2 2 3 4 1 . 2 2 1 2 2 2 . 3 2 3 4 . 5 2 4 . 4 3 3 1 1 1 5 1 1 Gunslinging 1 | . . . . . . 1 . . . 1 . . . 1 . . . . 1 . . . . . . . . . . . Exploded 5 | . 1 3 3 . . . . 1 2 . 2 . 3 1 3 4 . 5 . 4 . 3 3 2 . . . 1 1 . Melee . | . . . . . . . . . . . . . . . . . . . . . . . . . . . . . . . Uniques/NPCs Destroyed . | . . . . . . . . . . . . . . . . . . . . . . . . . . . . . . . Combat | -11 -10 -10 -9 -9 -9 -8 -8 -8 -7 -7 -7 -7 -6 -6 -6 -6 -6 -5 -5 -5 -5 -5 -4 -4 -4 -4 -4 -4 -3 -3 -------- Run | Yrd Mat Min Mat Min Exi Min Mat Gar Fac Low Low Zio Pro Fac Low Low Dat Pro Fac Upp Upp War Pro Fac Ext Cet Arc Hub Res Tes Hostile Shots Fired 2121 | . 83 31 197 23 . 14 191 94 205 46 84 . 152 191 6 54 . 8 49 41 . 56 24 59 29 25 14 174 188 83 Missed 626 | . 24 9 52 4 . 6 60 32 60 8 18 . 40 83 2 15 . 3 10 6 . 24 6 16 5 7 3 57 54 22 Hits 1495 | . 59 22 145 19 . 8 131 62 145 38 66 . 112 108 4 39 . 5 39 35 . 32 18 43 24 18 11 117 134 61 Melee 70 | . . . 12 . . . 1 . 1 2 . . . 2 . 3 . . . 1 . . . . . . . 8 39 1 Projectile 1425 | . 59 22 133 19 . 8 130 62 144 36 66 . 112 106 4 36 . 5 39 34 . 32 18 43 24 18 11 109 95 60 AOE 12 | . . 1 . . . . . 2 1 . . . . . . . . . . . . 3 . 1 . . . . 3 1 Critical Strikes 78 | . . . 8 . . 1 6 2 8 3 3 . 2 2 . 2 . 1 . 1 . . 2 1 3 4 . 8 17 4 Actively Blocked 8 | . . . . . . . . . . . . . 1 . . . . . . . . . 1 . . . . 5 1 . Damage Taken 27363 | . 650 287 2009 244 . 121 2522 1060 2738 631 1053 . 1601 1279 111 761 . 82 542 721 . 376 319 938 525 372 302 2047 4720 1352 Core 3186 | . 68 32 139 15 . 10 220 136 356 74 80 . 172 103 . 142 . . . 103 . . 20 70 11 . . 135 625 675 Absorbed by Shields 751 | . . . . . . . . . . . . . . . . . . . . 76 . 154 37 . 56 115 . . 313 . Reduced by Siege Mode 299 | . . . . . . . . . . . . . . . . . . . 48 21 . . . 6 73 24 . 10 117 . Ignored by Resistances 231 | . . . 83 . . . . . . . . . 95 45 8 . . . . . . . . . . . . . . . Regen/Repaired (Parts) 2547 | . 181 . 229 . . . 213 . 587 . . . . 263 . . . . 608 . . 153 . 313 . . . . . . Core Remaining (%) 61 | 100 . 60 . . . 59 . 35 . . . . 2 . . . . 71 . . . . 87 . . . . 81 . . Volleys Fired 1334 | 11 82 24 110 28 . 17 144 86 102 35 45 . 43 88 1 33 . 13 52 37 3 28 11 31 88 35 27 83 76 1 Largest 2 | 2 2 2 2 2 . 2 2 2 2 2 2 . 2 2 1 2 . 2 2 2 2 2 2 2 2 1 1 1 1 1 Hottest 176 | 70 100 76 76 46 . 46 150 150 160 160 160 . 160 176 43 176 . 176 176 176 176 176 176 176 176 80 88 88 88 80 Shots Fired 2188 | 22 160 48 214 54 . 35 291 149 189 69 80 . 56 164 1 61 . 29 90 50 4 40 19 50 91 35 27 83 76 1 Gun 1590 | 22 157 46 210 52 . 35 32 . 148 69 68 . 32 164 . 51 . 27 90 32 4 32 16 46 91 35 27 39 64 1 Cannon 475 | . . . . . . . 259 143 26 . . . 11 . . . . . . . . . . . . . . 36 . . Launcher 108 | . 1 2 4 2 . . . 6 15 . 12 . 13 . 1 10 . 2 . 18 . 3 . 2 . . . 5 12 . Special 15 | . 2 . . . . . . . . . . . . . . . . . . . . 5 3 2 . . . 3 . . Kinetic 433 | 11 79 23 201 52 . 35 32 . . . . . . . . . . . . . . . . . . . . . . . Thermal 1586 | 11 80 23 9 . . . 259 143 174 69 68 . 32 164 . 51 . 27 90 32 4 32 16 46 91 35 27 39 64 . Explosive 121 | . 1 2 4 2 . . . 6 15 . 12 . 13 . 1 10 . 2 . 18 . 8 3 4 . . . 8 12 . Electromagnetic 48 | . . . . . . . . . . . . . 11 . . . . . . . . . . . . . . 36 . 1 Robot Hit Streak 36 | 6 11 4 35 36 . 10 18 24 15 12 9 . 8 33 . 15 . 8 25 25 . 16 20 15 22 13 9 20 13 1 Robot Miss Streak 6 | 3 5 4 4 1 . 1 3 3 4 2 3 . 2 2 . 1 . 1 2 1 . 2 1 2 3 3 1 6 3 . Penetration Max . | . . . . . . . . . . . . . . . . . . . . . . . . . . . . . . . Secondary Targets 25 | . 2 . 4 . . 1 . . 1 3 3 . . 2 . 2 . 1 5 . . . 1 . . . . . . . Max Gunslinging Chain 1 | . 1 . 1 . . 1 . . 1 1 1 . . 1 . 1 . 1 1 . . . 1 . . . . . . . Capacitor 288 | . . . . . . . . . . . . . . . . . . . . . . . . . 87 35 27 75 64 . Shots Hit Robots 1520 | 13 99 23 158 44 4 27 206 89 140 50 49 2 43 106 1 56 1 16 53 19 5 38 16 27 79 28 23 45 52 8 Core Hits 916 | 7 44 15 74 18 . 18 89 47 102 24 45 . 33 40 3 42 . 13 31 38 3 38 17 27 28 13 10 56 41 . Critical Kills 12 | . . . . . . . 4 1 1 3 1 . . . . . . . . . . . . . . 1 1 . . . Critical Parts Destroyed 8 | . . . 2 . . . . . 2 3 . . . . . . . . . . . . . . . . 1 . . . Critical Strikes 84 | . 3 1 3 . . . 4 1 3 7 1 . 3 10 . 4 . 3 8 2 . 1 3 1 12 2 3 4 4 1 Burn 50 | . 3 1 1 . . . . . . . . . . 10 . 4 . 2 8 1 . . 2 1 11 . 1 1 4 . Meltdown 6 | . . . . . . . 4 1 1 . . . . . . . . . . . . . . . . . . . . . Destroy 17 | . . . 2 . . . . . 2 7 1 . . . . . . . . . . . . . 1 2 2 . . . Corrupt 3 | . . . . . . . . . . . . . 1 . . . . . . . . . . . . . . 2 . . Sever 2 | . . . . . . . . . . . . . . . . . . . . . . 1 1 . . . . . . . Impale 6 | . . . . . . . . . . . . . 2 . . . . 1 . 1 . . . . . . . 1 . 1 Melee Attacks 171 | . . . 1 . 4 . . 23 9 6 . 3 13 11 2 11 1 3 1 1 5 12 . 1 7 1 . 13 24 19 Impact 44 | . . . 1 . . . . 17 9 6 . 1 . . . . . . . . . . . . . . . . . 10 Slashing . | . . . . . . . . . . . . . . . . . . . . . . . . . . . . . . . Piercing 79 | . . . . . . . . . . . . . 13 10 2 . . 3 . 1 5 . . . . . . 13 23 9 Sneak Attacks 54 | . . . . . 4 . . 7 . . . 2 . 1 . 11 1 . 1 . . 12 . 1 7 1 . 2 3 1 Combat Hostiles . | . . . . . . . . . . . . . . . . . . . . . . . . . . . . . . . Follow-up Attacks . | . . . . . . . . . . . . . . . . . . . . . . . . . . . . . . . Damage Inflicted 56532 | 178 1609 523 3151 634 . 505 4776 2497 5161 1215 2391 . 2629 3309 200 3259 . 945 1631 2250 385 3761 1658 1650 2098 694 655 4416 3913 439 Guns 24652 | 178 1462 353 2346 634 . 437 401 . 2799 1215 1084 . 532 3211 . 1107 . 362 1556 392 . 591 391 655 2083 694 655 237 1265 12 Cannons 8242 | . . . . . . . 4238 2085 510 . . . 140 . . . . . . . . . . . . . . 1269 . . Explosions 20484 | . 128 152 793 . . . . 326 1844 . 1307 . 1353 81 200 2152 . 404 . 1786 . 3013 1129 842 . . . 2455 2519 . Melee 2036 | . . . . . . . . 86 . . . . 604 . . . . 179 . 72 385 . . . . . . 154 129 427 Ramming 615 | . 19 18 12 . . 68 137 . 8 . . . . 17 . . . . 75 . . . . 46 15 . . 200 . . Kinetic 4605 | 114 661 151 2207 634 . 437 401 . . . . . . . . . . . . . . . . . . . . . . . Thermal 27145 | 64 801 202 139 . . . 4238 2085 3309 1215 1084 . 532 3292 . 1192 . 362 1556 392 . 591 391 655 2083 694 655 237 1376 . Explosive 20207 | . 128 152 793 . . . . 326 1844 . 1307 . 1353 . 200 2067 . 404 . 1786 . 3013 1129 842 . . . 2455 2408 . Electromagnetic 1421 | . . . . . . . . . . . . . 140 . . . . . . . . . . . . . . 1269 . 12 Impact 380 | . . . . . . . . 86 . . . . . . . . . . . . . . . . . . . . . 294 Slashing 503 | . . . . . . . . . . . . . . . . . . . . . . 157 138 107 . . . 101 . . Piercing 1656 | . . . . . . . . . . . . . 604 . . . . 179 . 72 385 . . . . . . 154 129 133 Highest Corruption 12 | . . . . 2 2 2 1 1 2 2 2 2 . 2 2 2 2 2 . 1 1 1 1 3 6 1 1 6 8 12 Average Corruption 1 | . . . . 2 2 2 1 1 1 2 2 2 . 1 1 1 2 2 . 1 1 1 1 2 3 1 1 4 1 8 Corruption Purged 9 | . . . . . . . . . . . . . . . 2 . . . . . . . 1 . 5 . 1 . . . Corruption Blocked . | . . . . . . . . . . . . . . . . . . . . . . . . . . . . . . . Effects 306 | . . . . 7 4 16 31 12 12 34 26 3 . 21 7 5 2 32 . 14 11 1 3 6 42 4 . 4 2 7 Message Errors 81 | . . . . 1 1 4 3 6 4 6 11 1 . 6 2 1 2 8 . 3 5 . 1 . 14 1 . 1 . . Matter Fused 83 | . . . . 3 1 4 13 2 3 11 8 . . 8 1 1 . 9 . 4 2 . 1 2 8 . . . . 2 Heat Flow Errors 33 | . . . . . . 2 3 1 1 3 1 1 . 3 1 2 . 2 . 3 . 1 . . 8 . . . . 1 Energy Discharges 38 | . . . . 2 . 1 3 1 . 6 1 1 . 2 . . . 8 . 1 1 . 1 . 5 1 . 2 1 1 Parts Rejected 3 | . . . . . . . 1 . . . . . . . . . . . . . . . . . . . . . . 2 Parts Fused 1 | . . . . . . . . . . 1 . . . . . . . . . . . . . . . . . . . . Data Loss (minor) 30 | . . . . 1 1 2 3 . 1 4 3 . . 1 2 . . 1 . 1 2 . . 3 4 . . . 1 . Data Loss (major) 14 | . . . . . 1 1 1 1 1 2 . . . 1 1 1 . 1 . 1 . . . . . 1 . . . 1 Misfires 14 | . . . . . . 1 3 1 1 . 2 . . . . . . 3 . . . . . 1 2 . . . . . Alerts 8 | . . . . . . 1 1 . 1 1 . . . . . . . . . 1 1 . . . . 1 . 1 . . Weapon Failures 1 | . . . . . . . . . . . . . . . . . . . . . . . . . 1 . . . . . Overload Shots . | . . . . . . . . . . . . . . . . . . . . . . . . . . . . . . . Overflow Damage 942 | . . . 27 . . . 33 87 48 . . . 39 . . 32 . 67 3 86 55 2 6 45 . . . 232 67 113 Projectiles 83 | . . . . . . . 25 13 45 . . . . . . . . . . . . . . . . . . . . . Explosions 347 | . . . 27 . . . . 10 3 . . . 8 . . 32 . 36 . 86 . 2 6 45 . . . 48 44 . Melee 512 | . . . . . . . 8 64 . . . . 31 . . . . 31 3 . 55 . . . . . . 184 23 113 Knockbacks 8 | . 1 . . . . 2 . . . . . . . 1 . . . . 1 . . . . . . . . 3 . . Impact 8 | . 1 . . . . 2 . . . . . . . 1 . . . . 1 . . . . . . . . 3 . . Kinetic . | . . . . . . . . . . . . . . . . . . . . . . . . . . . . . . . Secondary . | . . . . . . . . . . . . . . . . . . . . . . . . . . . . . . . Self-Inflicted Damage 764 | . 1 25 45 . . . . 38 89 . 17 . 74 . . . . . . 133 . . . . . . . 59 283 . Shots 23 | . 1 1 3 . . . . 1 3 . 1 . 1 . . . . . . 3 . . . . . . . 1 8 . Rammed 45 | . 3 2 1 . . 8 9 . . . . . . 2 . . . . 5 . . . . 3 1 . . 10 1 . Targets Rammed 52 | . 3 2 2 . . 9 11 . 1 . . . . 2 . . . . 5 . . . . 5 1 . . 10 1 . Kicked . | . . . . . . . . . . . . . . . . . . . . . . . . . . . . . . . Crushed 7 | . . . 1 . . 1 2 . 1 . . . . . . . . . . . . . . 2 . . . . . . Highest Temperature 342 | 63 219 114 174 3 . 223 335 245 302 270 165 80 84 288 81 288 . 264 342 236 33 254 12 60 215 . 72 252 222 184 Average Temperature 66 | 25 62 36 44 3 . 70 43 76 87 80 47 57 33 76 45 95 . 92 91 54 24 81 6 26 57 . 18 73 59 80 Received Heat Transfer 5412 | . 318 18 717 129 . 63 846 567 459 180 282 . 135 300 24 126 . 9 84 238 . 72 53 93 85 . 36 81 107 390 Effects 10 | . . . . . . . . . 3 3 . . . 1 . . . 1 . 2 . . . . . . . . . . Energy Bleed 4 | . . . . . . . . . 2 1 . . . 1 . . . . . . . . . . . . . . . . Interference 5 | . . . . . . . . . . 2 . . . . . . . 1 . 2 . . . . . . . . . . Short Circuit 1 | . . . . . . . . . 1 . . . . . . . . . . . . . . . . . . . . . Siege Activations 23 | . . . . . . . . . . . . . . . . . . 1 2 4 1 2 . 2 5 1 . 4 1 . Total Turns 342 | . . . . . . . . . . . . . . . . . . 9 32 38 61 27 . 43 62 10 . 24 36 . Longest Duration 61 | . . . . . . . . . . . . . . . . . . 9 18 13 61 14 . 32 22 10 . 13 36 . Martial Activations . | . . . . . . . . . . . . . . . . . . . . . . . . . . . . . . . Shielding Activations . | . . . . . . . . . . . . . . . . . . . . . . . . . . . . . . . Robots Disrupted 1 | . . . . . . . . . . . . . . . . . . . . . . . . . . . . . 1 . Combat Hostiles 1 | . . . . . . . . . . . . . . . . . . . . . . . . . . . . . 1 . Robots Corrupted 11 | . . . . . . . 1 1 . . . . 1 . . . . . 1 . . . . . . . . 5 . 2 Combat Hostiles 7 | . . . . . . . . . . . . . 1 . . . . . . . . . . . . . . 4 . 2 Parts Fried 24 | . . . . . . . 2 1 . . . . 3 . . . . . 1 . . . . . . . . 14 . 3 Impact Corruptions 8 | . . . . . . . 2 2 . . . . . . . . . . 1 . . . . . . . . 1 . 2 Robots Melted 27 | . . . . . . . 5 1 3 . . . 2 3 . 3 . . 1 2 . . 1 1 4 . . . 1 . Combat Hostiles 26 | . . . . . . . 5 1 3 . . . 2 2 . 3 . . 1 2 . . 1 1 4 . . . 1 . Parts Melted 153 | . 1 . 1 . . . 21 4 25 3 9 . 11 23 . 7 . 4 12 2 . . 2 2 18 . 2 1 5 . Heat Transferred 51307 | 185 2109 518 370 . . . 7215 2997 6002 1850 1665 . 851 6650 . 2400 . 850 3600 800 . 975 850 1200 4664 1073 1233 500 2750 . Parts Sabotaged . | . . . . . . . . . . . . . . . . . . . . . . . . . . . . . . . Parts Stolen . | . . . . . . . . . . . . . . . . . . . . . . . . . . . . . . . Parts Stripped . | . . . . . . . . . . . . . . . . . . . . . . . . . . . . . . . Power Chain Reactions 3 | . . . . . . . . . . . . . 1 . . 1 . . . . . . . . . . . . 1 . Alert | -11 -10 -10 -9 -9 -9 -8 -8 -8 -7 -7 -7 -7 -6 -6 -6 -6 -6 -5 -5 -5 -5 -5 -4 -4 -4 -4 -4 -4 -3 -3 ------- Run | Yrd Mat Min Mat Min Exi Min Mat Gar Fac Low Low Zio Pro Fac Low Low Dat Pro Fac Upp Upp War Pro Fac Ext Cet Arc Hub Res Tes Maximum Alert Level 4 | . 1 . 1 . . . 1 4 2 . . . . 1 . . . . . . . . . 1 1 1 1 2 1 . Low Security (%) 70 | 100 70 100 70 100 . 100 85 4 . . . . . 98 . . . . 100 . . . . 62 89 38 41 32 60 100 Level 1 19 | . 29 . 29 . . . 14 11 55 . . . . 1 . . . . . . . . . 37 10 61 58 23 39 . Level 2 7 | . . . . . . . . 27 44 . . . . . . . . . . . . . . . . . . 43 . . Level 3 1 | . . . . . . . . 30 . . . . . . . . . . . . . . . . . . . . . . Level 4 1 | . . . . . . . . 25 . . . . . . . . . . . . . . . . . . . . . . Level 5 . | . . . . . . . . . . . . . . . . . . . . . . . . . . . . . . . High Security . | . . . . . . . . . . . . . . . . . . . . . . . . . . . . . . . Max Security . | . . . . . . . . . . . . . . . . . . . . . . . . . . . . . . . Peak Influence 1228 | 20 284 177 265 100 . 114 250 1228 670 . . . . 229 . . . . 192 . . . . 298 397 286 271 635 321 106 Initial 644 | . . 90 . 100 . . . 162 644 . . . . 28 . . . . 58 . . . . . 114 215 95 56 321 102 Average 161 | 4 121 22 149 24 . 14 93 748 389 . . . . 72 . . . . 68 . . . . 103 93 213 198 333 129 82 Influence Increases 14317 | 30 600 347 1057 217 . 220 1317 1126 1072 435 555 . 350 805 100 435 . 205 427 470 10 256 210 446 924 291 206 1489 563 154 Destroy 0b10 Robot/C 8620 | . 360 260 620 180 . 140 780 560 660 320 500 . 260 460 80 400 . 180 280 420 . 240 180 200 500 140 80 580 200 40 Destroy 0b10 Robot/NC 750 | 30 50 20 95 . . 25 110 5 75 . 5 . 35 35 . 5 . 5 35 10 10 10 . 35 25 10 5 90 20 5 Destroy Leader 1442 | . 98 30 192 20 . 20 220 20 166 40 50 . 40 116 20 20 . 20 52 40 . . 30 34 66 . . 94 44 10 Allied During Kill 821 | . . 5 . . . 20 . 3 . . . . . . . 10 . . . . . 6 . . 297 112 85 283 . . Successful Hack 355 | . 19 . 42 . . . 20 26 37 . . . . 76 . . . . 5 . . . . 37 18 . . 10 45 20 Select Force Hacks 170 | . 60 . 60 . . . . . . . . . . . . . . . . . . . . . . . . 50 . . Disable Machine 495 | . . 15 . . . . 75 45 30 . . . . 60 . . . . 15 . . . . . . 15 30 165 15 30 Anti-Garrison Action 350 | . . . . . . . . 350 . . . . . . . . . . . . . . . . . . . . . . Destroy Structure 879 | . 13 17 33 17 . . 37 87 89 . . . . 28 . . . . 40 . . . . 140 18 14 6 172 164 4 Partial Spotted 30 | . . . 15 . . . . . . . . . . . . . . . . . . . . . . . . . 15 . Lose Combat Pursuer 405 | . . . . . . 15 75 30 15 75 . . 15 30 . . . . . . . . . . . . . 45 60 45 Influence Decreases 14271 | 30 367 580 799 470 5 220 1067 148 1638 888 726 38 304 739 187 258 202 111 420 508 73 110 356 212 773 438 283 1037 994 290 Entered New Map 2713 | . . 143 . 158 5 . . 88 584 246 40 38 . 18 42 6 202 . 36 38 13 . 146 . 120 170 143 105 292 80 Time Decay 8782 | 30 347 417 569 312 . 200 636 . 674 642 596 . 278 441 145 177 . 111 374 440 60 90 210 212 503 198 140 492 328 160 Lost Part 756 | . 20 . 70 . . . 60 20 80 . 90 . 26 70 . 10 . . 10 30 . . . . 10 10 . 20 180 50 Lost Ally 599 | . . 20 10 . . 20 . 40 . . . . . 60 . 65 . . . . . 20 . . 140 60 . 120 44 . Purge Threat 1421 | . . . 150 . . . 371 . 300 . . . . 150 . . . . . . . . . . . . . 300 150 . Squads Dispatched 77 | . 5 . 2 . . . 5 . 11 . . . . 13 . 1 . . 7 . . . . 4 2 . . 15 11 1 Investigation 28 | . 3 . 2 . . . . . 3 . . . . 4 . . . . 2 . . . . 1 1 . . 5 7 . Extermination 15 | . . . . . . . . . 3 . . . . 5 . . . . 1 . . . . 2 . . . 3 . 1 Reinforcement 30 | . 2 . . . . . 5 . 5 . . . . 4 . . . . 2 . . . . 1 1 . . 6 4 . Assault 4 | . . . . . . . . . . . . . . . . 1 . . 2 . . . . . . . . 1 . . Garrison . | . . . . . . . . . . . . . . . . . . . . . . . . . . . . . . . Intercept . | . . . . . . . . . . . . . . . . . . . . . . . . . . . . . . . Searches Triggered . | . . . . . . . . . . . . . . . . . . . . . . . . . . . . . . . Data Miner Redirects 5 | . . . . . . . . . . . . . . . . . . . . . . . . . 1 . . 4 . . Construction Impeded 1 | . . . . . . . . . . . . . . . . . . . . . . . . . . . . 1 . . Haulers Reinforced 7 | . . . . . . . . . 2 . . . . 1 . . . . 1 . . . . . . . . . 3 . Active Scanning Responses . | . . . . . . . . . . . . . . . . . . . . . . . . . . . . . . . Cargo Convoy Interrupts 1 | . . . . . . . . . 1 . . . . . . . . . . . . . . . . . . . . . Stealth | -11 -10 -10 -9 -9 -9 -8 -8 -8 -7 -7 -7 -7 -6 -6 -6 -6 -6 -5 -5 -5 -5 -5 -4 -4 -4 -4 -4 -4 -3 -3 --------- Run | Yrd Mat Min Mat Min Exi Min Mat Gar Fac Low Low Zio Pro Fac Low Low Dat Pro Fac Upp Upp War Pro Fac Ext Cet Arc Hub Res Tes Distress Signals 30 | . 1 . . . . . 5 . 1 . . . 2 . . 1 . . . 1 . 1 . . 4 2 . 1 11 . Communications Jammed 67 | . . . . . . . . . . . . . . . . . . . 3 . . . . 29 . . . 7 28 . Distress Signals 66 | . . . . . . . . . . . . . . . . . . . 2 . . . . 29 . . . 7 28 . Times Spotted 602 | . 35 29 45 10 . 8 60 28 51 19 23 . 8 28 1 19 . 4 19 9 . 50 7 11 28 10 12 38 39 11 Peak Tracking Total 18 | . 4 18 7 3 . 4 4 5 7 3 4 . 1 3 1 7 . 1 6 4 . 8 4 7 4 5 3 8 13 4 Tactical Retreats 18 | . . . . . . 1 3 1 1 4 . . 1 2 . . . . . . . . . . . . . 2 2 1 Traps | -11 -10 -10 -9 -9 -9 -8 -8 -8 -7 -7 -7 -7 -6 -6 -6 -6 -6 -5 -5 -5 -5 -5 -4 -4 -4 -4 -4 -4 -3 -3 ------- Run | Yrd Mat Min Mat Min Exi Min Mat Gar Fac Low Low Zio Pro Fac Low Low Dat Pro Fac Upp Upp War Pro Fac Ext Cet Arc Hub Res Tes Traps Triggered 12 | . 2 . . . . . 1 5 . . . . . 2 . . . . . . . . . . 2 . . . . . Indirectly . | . . . . . . . . . . . . . . . . . . . . . . . . . . . . . . . Trap Hack Attempts 1 | . . . . . . . . . 1 . . . . . . . . . . . . . . . . . . . . . Triggered . | . . . . . . . . . . . . . . . . . . . . . . . . . . . . . . . Disarmed . | . . . . . . . . . . . . . . . . . . . . . . . . . . . . . . . Reprogrammed 1 | . . . . . . . . . 1 . . . . . . . . . . . . . . . . . . . . . Reused . | . . . . . . . . . . . . . . . . . . . . . . . . . . . . . . . Traps Extracted . | . . . . . . . . . . . . . . . . . . . . . . . . . . . . . . . Installed . | . . . . . . . . . . . . . . . . . . . . . . . . . . . . . . . Triggered . | . . . . . . . . . . . . . . . . . . . . . . . . . . . . . . . Most Traps Carried 6 | . . . . . . . . . . . 6 2 . . . . . . . . . . . . . . . . . . Machines | -11 -10 -10 -9 -9 -9 -8 -8 -8 -7 -7 -7 -7 -6 -6 -6 -6 -6 -5 -5 -5 -5 -5 -4 -4 -4 -4 -4 -4 -3 -3 ---------- Run | Yrd Mat Min Mat Min Exi Min Mat Gar Fac Low Low Zio Pro Fac Low Low Dat Pro Fac Upp Upp War Pro Fac Ext Cet Arc Hub Res Tes Machines Disabled 52 | . . 1 . . . . 5 10 2 2 1 3 . 4 . 3 . . 1 . . 2 . . 1 1 2 11 1 2 Max in Single Turn 2 | . . 1 . . . . 2 1 1 1 1 1 . 2 . 1 . . 1 . . 2 . . . 1 . 2 1 1 Garrison Access 6 | . . . . . . . . . 3 . . . . . . . . . 1 . . . . . . . . 1 1 . Garrison Relay 5 | . . . . . . . . 5 . . . . . . . . . . . . . . . . . . . . . . Network Hub 2 | . . . . . . . . . . . . . . . . . . . . . . . . . . . . 2 . . Machines Repaired . | . . . . . . . . . . . . . . . . . . . . . . . . . . . . . . . Machines Dismantled 5 | . . . . . . . . . . . . 3 . . . . . . . . . . . . . 1 . 1 . . Machines Sabotaged 1 | . . . . . . . . . . . . . . . . . . . . . . . . . . . . 1 . . Overloaded Fab Kills . | . . . . . . . . . . . . . . . . . . . . . . . . . . . . . . . Hacking | -11 -10 -10 -9 -9 -9 -8 -8 -8 -7 -7 -7 -7 -6 -6 -6 -6 -6 -5 -5 -5 -5 -5 -4 -4 -4 -4 -4 -4 -3 -3 --------- Run | Yrd Mat Min Mat Min Exi Min Mat Gar Fac Low Low Zio Pro Fac Low Low Dat Pro Fac Upp Upp War Pro Fac Ext Cet Arc Hub Res Tes Machines Accessed 117 | . 9 1 18 . . . 13 3 11 2 1 . 1 16 . 1 4 . 4 . 1 6 . 3 4 . . 10 7 2 Terminals 62 | . 6 . 12 . . . 8 3 2 1 1 . 1 8 . . . . . . . . . 2 3 . . 9 4 2 Fabricators 8 | . . . . . . . . . 1 . . . . 4 . . . . 2 . . . . . . . . . 1 . Repair Stations 13 | . 1 . 2 . . . 2 . 3 . . . . 2 . . . . 1 . . . . 1 1 . . . . . Recycling Units 5 | . 2 . 2 . . . . . . . . . . 1 . . . . . . . . . . . . . . . . Scanalyzers 7 | . . . 2 . . . 2 . 2 . . . . 1 . . . . . . . . . . . . . . . . Garrison Access 8 | . . . . . . . 1 . 3 . . . . . . . . . 1 . . . . . . . . 1 2 . Total Hacks 372 | . 28 1 62 . . . 39 7 36 4 8 . 1 40 . 1 28 . 11 . 1 6 . 10 10 . . 30 23 26 Successful 232 | . 15 1 43 . . . 28 2 17 4 8 . 1 24 . 1 28 . 7 . 1 6 . 8 3 . . 16 7 12 Failed 138 | . 12 . 19 . . . 11 5 18 . . . . 16 . . . . 4 . . . . 2 7 . . 14 16 14 Catastrophic 18 | . . . 2 . . . 2 1 3 . . . . 1 . . . . . . . . . . 1 . . 1 5 2 Database Lockouts 2 | . 1 . . . . . . . 1 . . . . . . . . . . . . . . . . . . . . . Manual 156 | . 23 . 28 . . . 24 2 7 . . . . 21 . . . . 4 . . 1 . 1 7 1 . 21 5 11 Terminals 228 | . 21 . 43 . . . 28 7 14 3 8 . 1 21 . . . . . . . . . 6 7 . . 29 14 26 Fabricators 18 | . . . . . . . . . 3 . . . . 8 . . . . 5 . . . . . . . . . 2 . Repair Stations 41 | . 5 . 6 . . . 5 . 9 . . . . 6 . . . . 3 . . . . 4 3 . . . . . Recycling Units 6 | . 2 . 2 . . . . . . . . . . 2 . . . . . . . . . . . . . . . . Scanalyzers 23 | . . . 11 . . . 4 . 5 . . . . 3 . . . . . . . . . . . . . . . . Garrison Access 18 | . . . . . . . 2 . 5 . . . . . . . . . 3 . . . . . . . . 1 7 . Terminal Hacks 109 | . 1 1 10 . . . 8 2 6 4 8 . 1 7 . 1 28 . . . 1 6 . 5 . . . 9 3 8 Record 30 | . . . . . . . . . . 3 8 . 1 . . . 11 . . . . 5 . . . . . . 1 1 Part Schematic 13 | . . . . . . . . . . . . . . . . . 10 . . . . . . 1 . . . . 1 1 Robot Schematic 5 | . 1 . . . . . . . . . . . . . . . 4 . . . . . . . . . . . . . Robot Analysis 1 | . . . . . . . . . . . . . . 1 . . . . . . . . . . . . . . . . Prototype ID Bank 9 | . . . 3 . . . 1 . 1 . . . . . . . 3 . . . . . . . . . . . . 1 Open Door 5 | . . 1 . . . . . . . 1 . . . . . 1 . . . . 1 1 . . . . . . . . Branch Access Points 3 | . . . 1 . . . . . 1 . . . . 1 . . . . . . . . . . . . . . . . Terminal Index 4 | . . . 1 . . . 1 . . . . . . . . . . . . . . . . . . . . 1 . 1 Garrison Index 1 | . . . . . . . . . . . . . . . . . . . . . . . . 1 . . . . . . Alert Level 4 | . . . 1 . . . . . 1 . . . . . . . . . . . . . . . . . . 1 . 1 Unreport Threat 10 | . . . 1 . . . 3 . 2 . . . . 1 . . . . . . . . . . . . . 2 1 . Locate Traps 8 | . . . 1 . . . 2 . . . . . . 1 . . . . . . . . . 1 . . . 1 . 2 Patrol Status 1 | . . . . . . . . . . . . . . . . . . . . . . . . . . . . . . 1 Recall Extermination 1 | . . . . . . . . . . . . . . 1 . . . . . . . . . . . . . . . . Hauler Manifests 5 | . . . 2 . . . 1 . . . . . . 1 . . . . . . . . . 1 . . . . . . Registered Components 2 | . . . . . . . . . 1 . . . . . . . . . . . . . . 1 . . . . . . Zone Layout 5 | . . . . . . . . . . . . . . 1 . . . . . . . . . . . . . 4 . . Garrison Registry 1 | . . . . . . . . 1 . . . . . . . . . . . . . . . . . . . . . . Security Stations 1 | . . . . . . . . 1 . . . . . . . . . . . . . . . . . . . . . . Fabricator Hacks 7 | . . . . . . . . . 1 . . . . 2 . . . . 2 . . . . . . . . . 2 . Network Status 2 | . . . . . . . . . 1 . . . . . . . . . 1 . . . . . . . . . . . Load Schematic 2 | . . . . . . . . . . . . . . 1 . . . . . . . . . . . . . . 1 . Build 3 | . . . . . . . . . . . . . . 1 . . . . 1 . . . . . . . . . 1 . Repair Station Hacks 24 | . 4 . 6 . . . 4 . 2 . . . . 3 . . . . 2 . . . . 2 1 . . . . . Scan Component 13 | . 2 . 3 . . . 2 . 1 . . . . 2 . . . . 1 . . . . 1 1 . . . . . Repair 11 | . 2 . 3 . . . 2 . 1 . . . . 1 . . . . 1 . . . . 1 . . . . . . Recycling Unit Hacks . | . . . . . . . . . . . . . . . . . . . . . . . . . . . . . . . Scanalyzer 19 | . . . 10 . . . 4 . 2 . . . . 3 . . . . . . . . . . . . . . . . Insert Component 5 | . . . 3 . . . . . 1 . . . . 1 . . . . . . . . . . . . . . . . Analyze 6 | . . . 4 . . . . . . . . . . 2 . . . . . . . . . . . . . . . . Retrieve Study 8 | . . . 3 . . . 4 . 1 . . . . . . . . . . . . . . . . . . . . . Garrison Access Hacks 6 | . . . . . . . 1 . 3 . . . . . . . . . . . . . . . . . . 1 1 . Unlock Access 1 | . . . . . . . 1 . . . . . . . . . . . . . . . . . . . . . . . Seal Access 5 | . . . . . . . . . 3 . . . . . . . . . . . . . . . . . . 1 1 . Unauthorized Hacks 67 | . 10 . 17 . . . 11 . 3 . . . . 9 . . . . 3 . . . . 1 2 . . 6 1 4 Terminals 51 | . 8 . 15 . . . 11 . . . . . . 4 . . . . . . . . . . 2 . . 6 1 4 Assimilate 5 | . . . 2 . . . 1 . . . . . . 1 . . . . . . . . . . . . . . 1 . Botnet 9 | . 2 . 2 . . . 2 . . . . . . 1 . . . . . . . . . . . . . 1 . 1 Disrupt 1 | . . . . . . . . . . . . . . 1 . . . . . . . . . . . . . . . . Operators 6 | . 1 . 1 . . . 1 . . . . . . 1 . . . . . . . . . . . . . 1 . 1 Skim 26 | . 5 . 10 . . . 7 . . . . . . . . . . . . . . . . . 2 . . . . 2 Sabotage 4 | . . . . . . . . . . . . . . . . . . . . . . . . . . . . 4 . . Fabricators 6 | . . . . . . . . . 1 . . . . 3 . . . . 2 . . . . . . . . . . . Prioritize 1 | . . . . . . . . . . . . . . . . . . . 1 . . . . . . . . . . . Liberate 2 | . . . . . . . . . . . . . . 2 . . . . . . . . . . . . . . . . Haulers 3 | . . . . . . . . . 1 . . . . 1 . . . . 1 . . . . . . . . . . . Repair Stations 4 | . . . . . . . . . 2 . . . . . . . . . 1 . . . . 1 . . . . . . Patch 4 | . . . . . . . . . 2 . . . . . . . . . 1 . . . . 1 . . . . . . Recycling Units 6 | . 2 . 2 . . . . . . . . . . 2 . . . . . . . . . . . . . . . . Reject 1 | . . . . . . . . . . . . . . 1 . . . . . . . . . . . . . . . . Recyclers 1 | . . . . . . . . . . . . . . 1 . . . . . . . . . . . . . . . . Tunnel 4 | . 2 . 2 . . . . . . . . . . . . . . . . . . . . . . . . . . . Scanalyzers . | . . . . . . . . . . . . . . . . . . . . . . . . . . . . . . . Garrison Access . | . . . . . . . . . . . . . . . . . . . . . . . . . . . . . . . Data Cores Recovered 3 | . 1 . 2 . . . . . . . . . . . . . . . . . . . . . . . . . . . Used 1 | . . . 1 . . . . . . . . . . . . . . . . . . . . . . . . . . . Hacking Detections 90 | . 7 . 15 . . . 13 3 8 1 . . . 16 . . . . 4 . . . . 3 4 . . 7 7 2 Full Trace Events 11 | . . . . . . . . . 1 1 . . . 4 . . . . 1 . . . . . 1 . . 1 2 . Feedback Events 2 | . . . . . . . . . . . . . . 1 . . . . . . . . . . . . . . 1 . Corruption 2 | . . . . . . . . . . . . . . 1 . . . . . . . . . . . . . . 1 . Feedback Blocked . | . . . . . . . . . . . . . . . . . . . . . . . . . . . . . . . Robot Schematics Acquired 8 | . 1 . . . . . . . . . . 3 . . . . 4 . . . . . . . . . . . . . Robots Built . | . . . . . . . . . . . . . . . . . . . . . . . . . . . . . . . Authchips . | . . . . . . . . . . . . . . . . . . . . . . . . . . . . . . . Time . | . . . . . . . . . . . . . . . . . . . . . . . . . . . . . . . Total Robot Build Rating . | . . . . . . . . . . . . . . . . . . . . . . . . . . . . . . . Part Schematics Acquired 32 | . . . 3 . . . . . . . . 15 . 1 . . 10 . . . . . . 1 . . . . 1 1 Parts Built 4 | . . . . . . . . . . . . . . 1 . . . . 1 . . . . . . . . . 2 . Authchips . | . . . . . . . . . . . . . . . . . . . . . . . . . . . . . . . Time 271 | . . . . . . . . . . . . . . 68 . . . . 139 . . . . . . . . . 64 . Total Part Build Rating 33 | . . . . . . . . . . . . . . 8 . . . . 9 . . . . . . . . . 16 . Part Studies Acquired 8 | . . . 3 . . . 4 . 1 . . . . . . . . . . . . . . . . . . . . . Parts Repaired 11 | . 2 . 3 . . . 2 . 1 . . . . 1 . . . . 1 . . . . 1 . . . . . . Time 436 | . 52 . 121 . . . 70 . 19 . . . . 19 . . . . 56 . . . . 99 . . . . . . Parts Recycled . | . . . . . . . . . . . . . . . . . . . . . . . . . . . . . . . Recycled Matter . | . . . . . . . . . . . . . . . . . . . . . . . . . . . . . . . Retrieved Matter . | . . . . . . . . . . . . . . . . . . . . . . . . . . . . . . . Retrieved Components . | . . . . . . . . . . . . . . . . . . . . . . . . . . . . . . . Parts Scanalyzed 4 | . . . 3 . . . . . 1 . . . . . . . . . . . . . . . . . . . . . Part Schematics Acquired 4 | . . . 3 . . . . . . . . . . 1 . . . . . . . . . . . . . . . . Parts Damaged . | . . . . . . . . . . . . . . . . . . . . . . . . . . . . . . . Bothacking | -11 -10 -10 -9 -9 -9 -8 -8 -8 -7 -7 -7 -7 -6 -6 -6 -6 -6 -5 -5 -5 -5 -5 -4 -4 -4 -4 -4 -4 -3 -3 ------------ Run | Yrd Mat Min Mat Min Exi Min Mat Gar Fac Low Low Zio Pro Fac Low Low Dat Pro Fac Upp Upp War Pro Fac Ext Cet Arc Hub Res Tes Used RIF Installer . | . . . . . . . . . . . . . . . . . . . . . . . . . . . . . . . Robots Hacked 16 | . . . . . 4 . . . . . . 2 . 1 . . 1 . 1 . . 1 . 1 3 1 . . 1 . Non-combat 6 | . . . . . 3 . . . . . . . . 1 . . . . 1 . . . . 1 . . . . . . Combat 10 | . . . . . 1 . . . . . . 2 . . . . 1 . . . . 1 . . 3 1 . . 1 . Robot Hacks Applied 16 | . . . . . 4 . . . . . . 2 . 1 . . 1 . 1 . . 1 . 1 3 1 . . 1 . parse_system 13 | . . . . . 4 . . . . . . 2 . . . . 1 . . . . 1 . . 3 1 . . 1 . find_chute 3 | . . . . . . . . . . . . . . 1 . . . . 1 . . . . 1 . . . . . . Relay Couplers Released 22 | . . . . . . . . 17 2 . . . . . . . . . 3 . . . . . . . . . . . Machine Destruction 22 | . . . . . . . . 17 2 . . . . . . . . . 3 . . . . . . . . . . . Fabnet Peak Effective % . | . . . . . . . . . . . . . . . . . . . . . . . . . . . . . . . Robots Rewired 15 | . . . . . . . . 2 . . . . . . . 5 . . . . . 5 . . 3 . . . . . Allies Hacked . | . . . . . . . . . . . . . . . . . . . . . . . . . . . . . . . Hacks Repelled . | . . . . . . . . . . . . . . . . . . . . . . . . . . . . . . . Allies | -11 -10 -10 -9 -9 -9 -8 -8 -8 -7 -7 -7 -7 -6 -6 -6 -6 -6 -5 -5 -5 -5 -5 -4 -4 -4 -4 -4 -4 -3 -3 -------- Run | Yrd Mat Min Mat Min Exi Min Mat Gar Fac Low Low Zio Pro Fac Low Low Dat Pro Fac Upp Upp War Pro Fac Ext Cet Arc Hub Res Tes Total Allies 37 | . . 1 1 3 . . . 2 . . . . . 3 . 5 . . . . . 5 . . 12 5 . . . . Largest Group 7 | . . 1 1 3 3 3 . 2 . . . . . 3 . 3 . . . . . 5 1 . 7 7 7 7 . . Highest-Rated Group 551 | . . 31 10 40 40 40 . 31 . . . . . 60 . 87 . . . . . 248 64 . 374 551 551 551 . . Highest-Rated Ally 159 | . . 31 10 16 16 16 . 16 . . . . . 20 . 29 . . . . . 64 64 . 159 144 96 96 . . Initial Warlord ECA Mod 8 | . . . . . . . . . 8 8 8 8 7 7 7 7 7 6 6 6 6 6 5 5 5 5 5 5 4 4 Total Orders 30 | . . . . . . . . . . . . . . . . . . . . . . 13 2 . . 5 2 2 6 . STAY 10 | . . . . . . . . . . . . . . . . . . . . . . 5 1 . . 2 1 1 . . ROAM 2 | . . . . . . . . . . . . . . . . . . . . . . . . . . 1 . . 1 . FOLLOW 7 | . . . . . . . . . . . . . . . . . . . . . . 2 1 . . 2 1 1 . . EXPLORE 10 | . . . . . . . . . . . . . . . . . . . . . . 5 . . . . . . 5 . RETURN 1 | . . . . . . . . . . . . . . . . . . . . . . 1 . . . . . . . . Ally Attacks 328 | . . 19 . . . 24 . 3 . . . . . 24 . 23 . . . . . 14 . . 88 38 34 61 . . Total Damage 8717 | . . 298 . . . 274 . 57 . . . . . 505 . 285 . . . . . 445 . . 2533 1002 1277 2041 . . Kills 58 | . . 6 . . . 4 . . . . . . . 4 . 1 . . . . . 1 . . 18 6 3 15 . . Allies Corrupted . | . . . . . . . . . . . . . . . . . . . . . . . . . . . . . . . Allies Melted 1 | . . . . . . . . . . . . . . . . . . . . . . . . . 1 . . . . . Intel | -11 -10 -10 -9 -9 -9 -8 -8 -8 -7 -7 -7 -7 -6 -6 -6 -6 -6 -5 -5 -5 -5 -5 -4 -4 -4 -4 -4 -4 -3 -3 ------- Run | Yrd Mat Min Mat Min Exi Min Mat Gar Fac Low Low Zio Pro Fac Low Low Dat Pro Fac Upp Upp War Pro Fac Ext Cet Arc Hub Res Tes Active Infowar (turns) 47349 | 24 2228 18 3368 604 . 621 4563 1741 1215 2174 2325 2805 3322 2095 1942 2504 215 2462 1063 1883 1682 794 2349 935 1565 26 . 1403 1102 321 Optics 273 | . . . . . . . . . . . . . . . . . . . . . . . . . . . . . . 273 Sensors 18557 | . . . . . . . 2 . . . . . . . 1932 2445 212 2309 911 1870 1682 793 2326 870 1565 26 . 939 675 . Terrain 275 | . . . . . . . . . . . . . . . . . . . . . . . . . . . . . . 275 Seismic 39965 | 24 2228 18 3368 604 . 621 4561 1741 1215 1960 2074 2798 3153 1209 1937 2501 213 2318 888 1871 1651 633 1026 703 200 . . 450 . . Decoding 1 | . . . . . . . . . . . . 1 . . . . . . . . . . . . . . . . . . Jamming 11876 | . . . . . . . . . . 214 383 7 3319 2095 . . 3 2462 1063 11 . . . 841 204 . . 613 661 . Robot Analysis Total 1 | . . . . . . . . . . . . . . 1 . . . . . . . . . . . . . . . . Derelict Logs Recovered 18 | . . 1 . 1 . . . . . 2 1 1 2 . 3 1 . 2 . . 2 . 2 . . . . . . . Drone Launches 15 | . . . . . . . . . . . . . . . . . . . . . . 5 . . . . . . 10 . Drone Recoveries 9 | . . . . . . . . . . . . . . . . . . . . . . 5 . . . . . . 4 . Exploration | -11 -10 -10 -9 -9 -9 -8 -8 -8 -7 -7 -7 -7 -6 -6 -6 -6 -6 -5 -5 -5 -5 -5 -4 -4 -4 -4 -4 -4 -3 -3 ------------- Run | Yrd Mat Min Mat Min Exi Min Mat Gar Fac Low Low Zio Pro Fac Low Low Dat Pro Fac Upp Upp War Pro Fac Ext Cet Arc Hub Res Tes Turns Passed 58351 | 95 2550 2425 4289 2396 578 1221 4954 1741 2620 2315 2537 2809 3322 2095 1971 2696 215 2462 1063 1908 1726 1127 2388 935 2287 413 288 1465 1139 321 Spaces Moved 25239 | 39 1207 651 1600 900 281 567 2022 657 1035 1070 1089 1217 1256 789 1091 1120 98 1037 445 1067 984 550 990 432 1171 172 138 718 545 301 Core 173 | . . . . . . . . . . . . . . . . . . . . . . . . . . . . . 16 157 Treads 24011 | 22 1207 651 1600 900 281 567 2022 657 1035 1070 1089 1217 1256 779 199 1120 98 1037 445 1067 984 550 990 432 1171 172 138 718 529 8 Legs 17 | 17 . . . . . . . . . . . . . . . . . . . . . . . . . . . . . . Wheels 1038 | . . . . . . . . . . . . . . 10 892 . . . . . . . . . . . . . . 136 Hover . | . . . . . . . . . . . . . . . . . . . . . . . . . . . . . . . Flight . | . . . . . . . . . . . . . . . . . . . . . . . . . . . . . . . Fastest Speed 50 | 120 160 320 200 200 200 200 195 201 200 198 165 215 205 155 155 215 215 215 160 160 160 160 160 160 160 160 160 160 50 50 Average Speed 196 | 142 172 320 224 200 200 200 199 205 202 201 211 215 208 214 176 217 215 221 169 160 160 169 233 169 160 168 160 160 157 69 Slowest Speed 325 | 160 320 320 325 200 200 200 206 206 205 202 215 215 216 245 229 225 215 226 226 160 160 250 245 245 160 240 160 160 240 145 Overloaded Moves . | . . . . . . . . . . . . . . . . . . . . . . . . . . . . . . . Propulsion Burnouts . | . . . . . . . . . . . . . . . . . . . . . . . . . . . . . . . Robots Hopped . | . . . . . . . . . . . . . . . . . . . . . . . . . . . . . . . Potential Cave-ins 14 | . . . . . . . . . . . . . . 7 . . . . 4 . . . . . . . . . 3 . Cave-ins Triggered . | . . . . . . . . . . . . . . . . . . . . . . . . . . . . . . . Exploration Rate (%) 71 | 4 100 98 98 96 70 98 95 79 27 98 97 86 88 20 98 84 75 93 12 98 81 95 87 10 96 67 71 40 21 27 Regions Visited 30 Branch Regions 21 Pre-discovered Areas 19 | . 4 . 6 1 . . 1 . . 1 2 2 . . . . 1 1 . . . . . . . . . . . . Known Exits Taken 19 | . . . 1 . . 1 1 . 1 . 1 . 1 1 1 . . . 1 1 1 1 1 1 1 1 1 1 1 . Unknown Exits Taken 10 | 1 1 1 . 1 1 . . . . 1 . 1 . . . 1 1 1 . . . . . . . . . . . . Scrap Searched 40 | . . 1 . 1 . 1 . . . 3 9 5 1 . 4 1 . 5 . 3 4 . 2 . . . . . . . Spaces Dug 307 | . 11 17 9 . . . . 12 19 6 33 . 42 18 1 2 . 5 16 9 3 21 . 7 2 . . 34 38 2 Terrain Destroyed 1775 | . 11 17 37 22 . . 28 65 123 6 150 . 215 35 18 139 . 51 22 407 3 106 42 75 7 . . 71 123 2 Melee 53 | . . . 1 . . . . 12 8 6 . . . 2 1 . . . . . . . . . . . . 8 13 2 Projectile 156 | . 2 . . . . . 12 4 7 . 1 . . 29 . 8 . 11 22 10 3 7 1 14 7 . . 15 3 . AOE 1566 | . 9 17 36 22 . . 16 49 108 . 149 . 215 4 17 131 . 40 . 397 . 99 41 61 . . . 48 107 . Terrain Rammed . | . . . . . . . . . . . . . . . . . . . . . . . . . . . . . . . Walls Destroyed . | . . . . . . . . . . . . . . . . . . . . . . . . . . . . . . . Machines Disabled . | . . . . . . . . . . . . . . . . . . . . . . . . . . . . . . . Actions | -11 -10 -10 -9 -9 -9 -8 -8 -8 -7 -7 -7 -7 -6 -6 -6 -6 -6 -5 -5 -5 -5 -5 -4 -4 -4 -4 -4 -4 -3 -3 --------- Run | Yrd Mat Min Mat Min Exi Min Mat Gar Fac Low Low Zio Pro Fac Low Low Dat Pro Fac Upp Upp War Pro Fac Ext Cet Arc Hub Res Tes Total 31649 | 57 1507 944 2098 1443 294 611 2664 862 1328 1148 1238 1358 1880 1003 1131 1307 101 1168 665 1204 1120 708 1046 583 1580 283 203 976 758 381 Wait 3401 | . 136 254 276 503 . 10 362 44 33 22 41 61 507 65 12 94 . 73 99 59 107 58 27 74 244 20 35 99 58 28 Move 25210 | 38 1206 650 1599 899 280 566 2022 656 1034 1069 1088 1216 1255 788 1090 1119 97 1036 444 1066 983 549 989 431 1170 171 137 717 544 301 Hop . | . . . . . . . . . . . . . . . . . . . . . . . . . . . . . . . Pick Up 251 | 3 30 4 21 2 . 2 27 6 27 . 16 16 8 10 2 5 . 6 7 6 2 6 3 9 15 4 . 5 7 2 Fast Attach 142 | 1 5 . 13 2 3 . 9 . 21 . 5 4 7 4 5 . . 2 8 1 2 12 2 1 7 11 . . 6 11 Attach 92 | . 2 . 9 . . . 9 2 10 . 8 1 12 6 . 2 . 1 4 3 . 1 1 3 1 1 . 4 6 6 Detach 31 | . . . . . . . . . 3 . 1 1 7 . 1 1 . 1 4 2 . . 1 1 2 1 . . 1 4 Swap 570 | 3 26 6 32 4 4 5 37 25 46 14 22 10 19 21 14 37 3 25 29 24 14 23 10 18 22 11 4 39 22 1 Drop 342 | 1 17 4 35 5 3 2 43 10 41 2 12 19 9 6 4 5 . 8 12 5 4 19 2 9 23 20 . 3 11 8 Fire 1334 | 11 82 24 110 28 . 17 144 86 102 35 45 . 43 88 1 33 . 13 52 37 3 28 11 31 88 35 27 83 76 1 Melee 171 | . . . 1 . 4 . . 23 9 6 . 3 13 11 2 11 1 3 1 1 5 12 . 1 7 1 . 13 24 19 Ram . | . . . . . . . . . . . . . . . . . . . . . . . . . . . . . . . Kick . | . . . . . . . . . . . . . . . . . . . . . . . . . . . . . . . Crush 52 | . 3 2 2 . . 9 11 . 1 . . . . 2 . . . . 5 . . . . 5 1 . . 10 1 . Escape Stasis 12 | . . . . . . . . 10 . . . . . 2 . . . . . . . . . . . . . . . . Rewire . | . . . . . . . . . . . . . . . . . . . . . . . . . . . . . . . Trap 1 | . . . . . . . . . 1 . . . . . . . . . . . . . . . . . . . . . Miscellaneous 40 | . . . . . . . . . . . . 27 . . . . . . . . . . . . . 8 . 3 2 . Route ------- -11/Scrapyard -10/Materials (discovered 5 exits: *Mat x3 / *Min / [*Sub]) -10/Mines (discovered 2 exits: *Mat x2) -9/Materials (discovered 4 exits: *Mat x3 / *Min) -9/Mines (discovered 3 exits: *Mat / [*Exi] / *Zio) -9/Exiles (discovered 2 exits: [*Min x2]) -8/Mines (discovered 2 exits: *Mat x2) -8/Materials (discovered 4 exits: *Fac x3 / Gar) -8/Garrison (discovered 3 exits: *Fac x3) -7/Factory (discovered 5 exits: Fac / Sto x2 / *Low x2) -7/Lower Caves -7/Lower Caves (discovered 2 exits: *Fac / *Zio) -7/Zion (discovered 2 exits: [*Dee] / *Pro) -6/Proximity Caves -6/Factory (discovered 3 exits: *Fac / *Low x2) -6/Lower Caves -6/Lower Caves -6/Data Miner -5/Proximity Caves -5/Factory (discovered 3 exits: Fac / *Upp x2) -5/Upper Caves -5/Upper Caves (discovered 2 exits: *Fac / *War) -5/Warlord -4/Proximity Caves -4/Factory -4/Extension (discovered 2 exits: *Res / *Cet) -4/Cetus (discovered 2 exits: *Res / *Arc) -4/Archives -4/Hub_04(d) -3/Research (discovered 2 exits: Res / *Tes) -3/Testing History --------- Turn | Location | Event 24 | -11/Scrapyard | Discovered new exit (range 3) 96 | -11/Scrapyard | Entered Materials 132 | -10/Materials | Discovered new exit (range 11) 316 | -10/Materials | Build established: Mutant 446 | -10/Materials | Discovered new exit (range 7) 828 | -10/Materials | Discovered new exit (range 11) 1255 | -10/Materials | Discovered new exit (range 4) 1403 | -10/Materials | Discovered new exit (range 5) 1479 | -10/Materials | Learned 2 Storage zone layouts 1509 | -10/Materials | Learned 4 Subcaves zone layouts 1529 | -10/Materials | Loaded intel: 10 trap records 1538 | -10/Materials | Learned location of Mines (-9) 1539 | -10/Materials | Learned location of 1 exit from Storage 1540 | -10/Materials | Learned location of Recycling (-7) 1541 | -10/Materials | Learned Storage stockpile data 1597 | -10/Materials | Learned location of 1 exit from Storage 1756 | -10/Materials | Repaired Assault Rifle 1783 | -10/Materials | Repaired Lgt. Treads 1967 | -10/Materials | Central database locked down 2646 | -10/Materials | Entered Mines 2647 | -10/Mines | Escorted by a lone wolf Derelict 2663 | -10/Mines | Assembled infested the area 2869 | -10/Mines | Found a hidden stash of uninstalled traps 3363 | -10/Mines | Learned location of 1 exit from Materials 3878 | -10/Mines | Discovered new exit (range 12) 3901 | -10/Mines | Received a Rocket Launcher from a helpful Derelict 4490 | -10/Mines | Discovered new exit (range 10) 4596 | -10/Mines | Met a Derelict who couldn't figure out how to use a Trap Extractor 5071 | -10/Mines | Entered Materials 5071 | -9/Materials | Evolved 2 slots: Propulsion x1, Utility x1 5072 | -9/Materials | Identified exit to Materials 5481 | -9/Materials | Discovered exit to Materials (range 15) 5750 | -9/Materials | Discovered new exit (range 12) 5755 | -9/Materials | Build established: Scavenger-Mutant 5962 | -9/Materials | Destroyed 7 combat bots 5967 | -9/Materials | Lost 6 parts (1p1n2u2w) 6018 | -9/Materials | Learned location of 1 exit from Storage 6059 | -9/Materials | Learned Storage emergency access door positions 6088 | -9/Materials | Learned 4 Recycling zone layouts 6106 | -9/Materials | Learned location of Zion (-7) 6132 | -9/Materials | Learned location of Storage (-7) 6343 | -9/Materials | Identified exit to Mines 7083 | -9/Materials | Build established: Mutant 7811 | -9/Materials | Build established: Scavenger-Mutant 7887 | -9/Materials | Loaded intel: 5 trap records 7981 | -9/Materials | Learned location of 3 exits from Materials 8035 | -9/Materials | Learned Materials stockpile data 8192 | -9/Materials | Build established: Mutant 8760 | -9/Materials | Repaired Imp. Light Armor Plating 8980 | -9/Materials | Repaired Imp. Assault Rifle 9014 | -9/Materials | Repaired Hvy. Assault Rifle+ 9360 | -9/Materials | Entered Mines 9383 | -9/Mines | A Derelict revealed a hidden shortcut to a safe place 9673 | -9/Mines | Excavation squad dispatched 9673 | -9/Mines | A large section of the Mines collapsed 9723 | -9/Mines | Deemed a non-threat by the Exiles lab entrance 9723 | -9/Mines | Discovered new exit (range 5) 10901 | -9/Mines | Discovered exit to Materials (range 3) 11088 | -9/Mines | Found a damaged Exp. Sensor Array with a note attached 11093 | -9/Mines | Found Prototype Device 11093 | -9/Mines | Identified Exp. Sensor Array 11417 | -9/Mines | Assisted by bots powering up and referring to "LRC-V3" 11756 | -9/Mines | Entered Exiles 11756 | -9/Exiles | Accompanied by 3 allies 11786 | -9/Exiles | Discovered new exit (range 15) 11834 | -9/Exiles | Met 8R-AWN 11865 | -9/Exiles | Met EX-HEX 11964 | -9/Exiles | Met EX-DEC 12050 | -9/Exiles | Met EX-BIN 12309 | -9/Exiles | Discovered new exit (range 12) 12334 | -9/Exiles | Entered Mines 12334 | -8/Mines | Accompanied by 3 allies 12734 | -8/Mines | Discovered exit to Materials (range 8) 13086 | -8/Mines | Discovered exit to Materials (range 14) 13555 | -8/Mines | Entered Materials 13555 | -8/Materials | Evolved 2 slots: Utility x2 13556 | -8/Materials | Identified exit to Factory 15143 | -8/Materials | Build established: Scavenger-Mutant 15401 | -8/Materials | Learned 4 Factory zone layouts 15442 | -8/Materials | Learned Factory trap positions 15475 | -8/Materials | Learned location of 1 exit from Recycling 15496 | -8/Materials | Learned location of 1 exit from Recycling 15569 | -8/Materials | Learned Storage stockpile data 16965 | -8/Materials | Build established: Mutant 17170 | -8/Materials | Repaired Cooling System 18301 | -8/Materials | Repaired Hrd. Medium Armor Plating 18425 | -8/Materials | Build established: Scavenger-Mutant 18509 | -8/Materials | Identified exit to Garrison 18509 | -8/Materials | Entered Garrison 18565 | -8/Garrison | Triggered checkpoint 18590 | -8/Garrison | Garrison Relay disabled 18594 | -8/Garrison | Garrison Relay disabled 18826 | -8/Garrison | Triggered checkpoint 19008 | -8/Garrison | Discovered exit to Factory (range 15) 19042 | -8/Garrison | Learned Factory security intel 19055 | -8/Garrison | Triggered checkpoint 19114 | -8/Garrison | Garrison Relay disabled 19259 | -8/Garrison | Core integrity fell below 50% 19451 | -8/Garrison | Triggered checkpoint 19586 | -8/Garrison | Triggered checkpoint 19731 | -8/Garrison | Triggered checkpoint 19775 | -8/Garrison | Garrison Relay disabled 19798 | -8/Garrison | Discovered exit to Factory (range 79) 19798 | -8/Garrison | Discovered exit to Factory (range 24) 19798 | -8/Garrison | Discovered exit to Factory (range 42) 20115 | -8/Garrison | Triggered checkpoint 20145 | -8/Garrison | Garrison Relay disabled 20250 | -8/Garrison | Entered Factory 20250 | -7/Factory | Evolved 2 slots: Propulsion x1, Utility x1 20251 | -7/Factory | Identified exit to Storage 20252 | -7/Factory | Identified exit to Factory 20253 | -7/Factory | Loaded intel: 84 trap records 20625 | -7/Factory | Identified exit to Lower Caves 20866 | -7/Factory | Central database locked down 20879 | -7/Factory | Lost 3 parts (1n2u) 21672 | -7/Factory | Repaired Arm. Treads+ 21807 | -7/Factory | Build established: Mutant 22078 | -7/Factory | Cargo convoy interrupted 22712 | -7/Factory | Lost 3 parts (2n1w) 22777 | -7/Factory | Core integrity fell below 50% 22870 | -7/Factory | Entered Lower Caves 22877 | -7/Lower Caves | Met a Warlord Commander 22878 | -7/Lower Caves | Learned location of Warlord (-5) 22879 | -7/Lower Caves | Warlord Commander delivered Encrypted Comm Array 23201 | -7/Lower Caves | Attracted the attention of an 0b10 base 23270 | -7/Lower Caves | Learned Research garrison access intel 23270 | -7/Lower Caves | Learned Research terminal intel 23270 | -7/Lower Caves | Learned Extension security intel 24811 | -7/Lower Caves | Learned Factory emergency access door positions 24835 | -7/Lower Caves | Learned Factory interactive machine intel 24961 | -7/Lower Caves | Discovered new exit (range 12) 25185 | -7/Lower Caves | Entered another Lower Caves area 25412 | -7/Lower Caves | Discovered exit to Factory (range 10) 25551 | -7/Lower Caves | Attracted the attention of an 0b10 base 25661 | -7/Lower Caves | Learned Factory terminal intel 25661 | -7/Lower Caves | Learned Armory security intel 25661 | -7/Lower Caves | Identified exit to Zion 25661 | -7/Lower Caves | Learned location of 1 exit from Lower Caves 25829 | -7/Lower Caves | Lost 4 parts (1p2n1u) 25948 | -7/Lower Caves | Build established: Scavenger-Mutant 26399 | -7/Lower Caves | Encountered a Warlord checkpoint 27476 | -7/Lower Caves | Attracted the attention of an 0b10 checkpoint 27722 | -7/Lower Caves | Entered Zion 27834 | -7/Zion | System corruption cleaned by Quarantine Array 27907 | -7/Zion | Discovered new exit (range 13) 28693 | -7/Zion | Met Imprinter 28862 | -7/Zion | Found Prototype Device 28862 | -7/Zion | Identified Mobile Refinery Mk. CCLXVII 29204 | -7/Zion | Found CR-A16's Pointy Stick 29506 | -7/Zion | Found Prototype Processor 29509 | -7/Zion | Found Prototype Processor 29512 | -7/Zion | Found Prototype Processor 29517 | -7/Zion | Found Prototype Hackware 29521 | -7/Zion | Found Prototype Processor 29523 | -7/Zion | Identified Exp. Hacking Suite 29524 | -7/Zion | Found Prototype Processor 29536 | -7/Zion | Identified Spectral Analyzer (x2) 29554 | -7/Zion | Found Prototype Processor 29555 | -7/Zion | Identified Exp. Signal Interpreter 29557 | -7/Zion | Found Spectral Analyzer 29608 | -7/Zion | Identified Exp. Terrain Scan Processor (x2) 29616 | -7/Zion | Identified Exp. Target Analyzer 29829 | -7/Zion | Found Exp. Targeting Computer 30202 | -7/Zion | Discovered new exit (range 3) 30202 | -7/Zion | Saw the warning signs outside the Deep Caves entrance 30531 | -7/Zion | Entered Proximity Caves 31016 | -6/Proximity Caves | Spotted B-75 Beast 31073 | -6/Proximity Caves | Core integrity fell below 20% 31084 | -6/Proximity Caves | Revealed the true nature of CR-A16's Pointy Stick 31087 | -6/Proximity Caves | Destroyed B-75 Beast 31245 | -6/Proximity Caves | Attracted the attention of an 0b10 checkpoint 31368 | -6/Proximity Caves | Lost 5 parts (2n1u2w) 31487 | -6/Proximity Caves | Learned Factory terminal intel 31546 | -6/Proximity Caves | Build established: Mutant 33557 | -6/Proximity Caves | Discovered exit to Factory (range 5) 33749 | -6/Proximity Caves | Build established: Scavenger-Mutant 33853 | -6/Proximity Caves | Entered Factory 33853 | -6/Factory | Evolved 2 slots: Power x1, Utility x1 33855 | -6/Factory | Loaded intel: 54 interactive machine locations 33856 | -6/Factory | Loaded intel: 26 terminal locations 33894 | -6/Factory | Discovered new exit (range 7) 34641 | -6/Factory | Identified exit to Lower Caves 34807 | -6/Factory | Repaired Arm. Treads+? 35300 | -6/Factory | Build established: Mutant 35319 | -6/Factory | Fabricated Exp. Sensor Array (x1) 35710 | -6/Factory | Build established: Scavenger-Mutant 35948 | -6/Factory | Entered Lower Caves 35949 | -6/Lower Caves | Identified exit to Lower Caves 36120 | -6/Lower Caves | Learned 4 Factory zone layouts 36388 | -6/Lower Caves | Spotted B-75 Beast 36400 | -6/Lower Caves | Destroyed B-75 Beast 37040 | -6/Lower Caves | Learned location of 1 exit from Factory 37919 | -6/Lower Caves | Entered another Lower Caves area 38034 | -6/Lower Caves | Learned Factory emergency access door positions 38488 | -6/Lower Caves | Attacked by a delusional Derelict stockpiling Unaware 38658 | -6/Lower Caves | Lost 3 allies 39582 | -6/Lower Caves | Attracted the attention of an 0b10 outpost 39636 | -6/Lower Caves | Destroyed 7 combat bots 39710 | -6/Lower Caves | Destroyed 9 combat bots 39806 | -6/Lower Caves | Acquired the password to a Derelict Tinkerer's latest research 40089 | -6/Lower Caves | Caught by Unaware searching for contraband prototypes 40358 | -6/Lower Caves | Discovered new exit (range 6) 40615 | -6/Lower Caves | Entered Data Miner 40615 | -6/Data Miner | Discovered new exit (range 6) 40656 | -6/Data Miner | Met Data Miner 40724 | -6/Data Miner | Learned location of Section 7 (-2) 40724 | -6/Data Miner | Acquired the access code to Warlord's prototype stash 40767 | -6/Data Miner | Received God Mode back door access code from Data Miner 40830 | -6/Data Miner | Entered Proximity Caves 41891 | -5/Proximity Caves | Learned location of 1 exit from Factory 43102 | -5/Proximity Caves | Discovered new exit (range 14) 43292 | -5/Proximity Caves | Entered Factory 43292 | -5/Factory | Evolved 2 slots: Utility x2 43293 | -5/Factory | Identified exit to Upper Caves 43294 | -5/Factory | Identified exit to Factory 43297 | -5/Factory | Loaded intel: 26 terminal locations 43382 | -5/Factory | Fabricated Adv. Heavy Siege Treads? 43719 | -5/Factory | Build established: Mutant 44000 | -5/Factory | Destroyed 9 combat bots 44280 | -5/Factory | Repaired Hvy. Treads 44355 | -5/Factory | Entered Upper Caves 44400 | -5/Upper Caves | Lost 3 parts (3u) 44504 | -5/Upper Caves | Attracted the attention of an 0b10 checkpoint 45631 | -5/Upper Caves | Discovered new exit (range 11) 46258 | -5/Upper Caves | Identified exit to Upper Caves 46263 | -5/Upper Caves | Entered another Upper Caves area 46274 | -5/Upper Caves | Discovered exit to Factory (range 12) 46668 | -5/Upper Caves | Learned Factory emergency access door positions 47407 | -5/Upper Caves | Learned Factory terminal intel 47541 | -5/Upper Caves | Discovered new exit (range 2) 47543 | -5/Upper Caves | Identified exit to Warlord 47989 | -5/Upper Caves | Entered Warlord 48011 | -5/Warlord | Discovered new exit (range 23) 48042 | -5/Warlord | System corruption cleaned by Quarantine Array 48341 | -5/Warlord | Opened Warlord's prototype stash 48354 | -5/Warlord | Found Exp. Core Analyzer 48363 | -5/Warlord | Found Prototype Reactor 48363 | -5/Warlord | Identified Vortex Chain Reactor 48555 | -5/Warlord | Visited the Vortex Lab 48556 | -5/Warlord | Warlord's base attacked by MAIN.C 48569 | -5/Warlord | Found Prototype Piercing Weapon 48569 | -5/Warlord | Identified Vortex Lance 48751 | -5/Warlord | Found Prototype Special Weapon 48751 | -5/Warlord | Identified RU-N14's Throwing Claymores v3 48762 | -5/Warlord | Found RU-N14's Throwing Claymores v3 48766 | -5/Warlord | Found RU-N14's Throwing Claymores v3 48821 | -5/Warlord | Spotted B-86 Titan 48838 | -5/Warlord | Allies destroyed B-86 Titan 48842 | -5/Warlord | Lost 4 allies 48906 | -5/Warlord | Warlord forces counterattacked 48915 | -5/Warlord | Spotted Executioner 48962 | -5/Warlord | Found Prototype Device 48962 | -5/Warlord | Identified Adv. Kinecellerator 48989 | -5/Warlord | Spotted Striker 49038 | -5/Warlord | Lost 7 allies 49062 | -5/Warlord | Spotted B-75 Beast 49063 | -5/Warlord | Spotted Striker 49065 | -5/Warlord | Spotted B-86 Titan 49068 | -5/Warlord | Destroyed B-75 Beast 49107 | -5/Warlord | Lost 3 allies 49109 | -5/Warlord | Identified exit to Proximity Caves 49116 | -5/Warlord | Entered Proximity Caves 49116 | -4/Proximity Caves | Accompanied by 1 ally 50286 | -4/Proximity Caves | Received a Behemoth hack from an annoying Tinkerer 50766 | -4/Proximity Caves | Learned location of 1 exit from Research 51163 | -4/Proximity Caves | Discovered exit to Factory (range 8) 51504 | -4/Proximity Caves | Entered Factory 51504 | -4/Factory | Evolved 2 slots: Utility x2 51505 | -4/Factory | Identified exit to Extension 51507 | -4/Factory | Loaded intel: 28 terminal locations 51965 | -4/Factory | Repaired Adv. Plasma Rifle 52130 | -4/Factory | Destroyed 9 combat bots 52212 | -4/Factory | Found Quantum Capacitor 52439 | -4/Factory | Entered Extension 52517 | -4/Extension | Rescued a captive Derelict 52850 | -4/Extension | Rescued a captive Derelict 52852 | -4/Extension | Rescued a captive Derelict 52870 | -4/Extension | Rescued A7 52930 | -4/Extension | Rescued a captive Derelict 53047 | -4/Extension | Rescued a captive Derelict 53262 | -4/Extension | Spotted B-86 Titan 53282 | -4/Extension | Spotted B-86 Titan 53288 | -4/Extension | Allies destroyed B-86 Titan 53315 | -4/Extension | Destroyed B-86 Titan 53329 | -4/Extension | Lost 4 allies 53578 | -4/Extension | Rescued a captive Derelict 53579 | -4/Extension | Rescued a captive Derelict 53703 | -4/Extension | Rescued a captive Derelict 54023 | -4/Extension | Incoming investigation squad redirected 54578 | -4/Extension | Discovered new exit (range 16) 54579 | -4/Extension | Discovered new exit (range 15) 54709 | -4/Extension | Identified exit to Research 54720 | -4/Extension | Identified exit to Cetus 54726 | -4/Extension | Entered Cetus 54726 | -4/Cetus | Accompanied by 5 allies (A7) 54731 | -4/Cetus | Acquired a Cetus Manufacturing Module code from A7 54754 | -4/Cetus | Spotted Cetus Guard 54754 | -4/Cetus | Spotted Cetus Guard 54756 | -4/Cetus | Spotted Cetus Guard 54757 | -4/Cetus | Spotted Cetus Guard 54759 | -4/Cetus | Destroyed Cetus Guard 54766 | -4/Cetus | Allies destroyed Cetus Guard 54772 | -4/Cetus | Allies destroyed Cetus Guard 54781 | -4/Cetus | Extracted ID and sensor layout for unrecognized location from A7's data core 54914 | -4/Cetus | Started Cetus Manufacturing Module 54939 | -4/Cetus | Manufactured an Enhanced Grunt 54964 | -4/Cetus | Manufactured an Enhanced Grunt 54974 | -4/Cetus | Discovered new exit (range 15) 54989 | -4/Cetus | Manufactured an Enhanced Grunt 55003 | -4/Cetus | Spotted Cetus Guard 55003 | -4/Cetus | Spotted Cetus Guard 55006 | -4/Cetus | Spotted Cetus Guard 55011 | -4/Cetus | Spotted Cetus Guard 55013 | -4/Cetus | Build established: Scavenger-Mutant 55013 | -4/Cetus | Allies destroyed Cetus Guard 55014 | -4/Cetus | Manufactured an Enhanced Grunt 55018 | -4/Cetus | Allies destroyed Cetus Guard 55020 | -4/Cetus | Destroyed Cetus Guard 55023 | -4/Cetus | Allies destroyed Cetus Guard 55037 | -4/Cetus | Discovered exit to Research (range 15) 55039 | -4/Cetus | Manufactured an Enhanced Grunt 55051 | -4/Cetus | Met Revision 17 55131 | -4/Cetus | Identified exit to Archives 55139 | -4/Cetus | Entered Archives 55139 | -4/Archives | Accompanied by 7 allies 55333 | -4/Archives | Discovered new exit (range 15) 55421 | -4/Archives | Identified exit to Hub_04(d) 55427 | -4/Archives | Entered Hub_04(d) 55427 | -4/Hub_04(d) | Accompanied by 7 allies 55653 | -4/Hub_04(d) | Discovered exit to Research (range 12) 55976 | -4/Hub_04(d) | Lost 3 allies 56446 | -4/Hub_04(d) | Network Hub disabled 56508 | -4/Hub_04(d) | Incoming investigation squad redirected 56602 | -4/Hub_04(d) | Destroyed 7 combat bots 56645 | -4/Hub_04(d) | Network Hub disabled 56669 | -4/Hub_04(d) | Incoming investigation squad redirected 56677 | -4/Hub_04(d) | First assault squad dispatched 56693 | -4/Hub_04(d) | Incoming assault squad redirected 56716 | -4/Hub_04(d) | Incoming investigation squad redirected 56872 | -4/Hub_04(d) | Spotted Lightning 56876 | -4/Hub_04(d) | Spotted Lightning 56892 | -4/Hub_04(d) | Entered Research 56892 | -3/Research | Evolved 2 slots: Power x1, Propulsion x1 56893 | -3/Research | Identified exit to Testing 56894 | -3/Research | Identified exit to Research 56895 | -3/Research | Loaded intel: 22 terminal locations 56896 | -3/Research | Loaded intel: 4 garrison access locations 57092 | -3/Research | Revision forces began assault on 0b10 57202 | -3/Research | Met up with Revision 17++ 57341 | -3/Research | Lost 4 allies 57555 | -3/Research | Fabricated Adv. Force Field (x2) 57592 | -3/Research | Research terminal network offline 57825 | -3/Research | Spotted Striker 57836 | -3/Research | Spotted Executioner 57837 | -3/Research | Lost 6 allies 57858 | -3/Research | Destroyed Executioner 57877 | -3/Research | Destroyed Striker 57897 | -3/Research | Lost 5 parts (2p2n1w) 57961 | -3/Research | Spotted Striker 57964 | -3/Research | Spotted Striker 57966 | -3/Research | Spotted Striker 57970 | -3/Research | Spotted Striker 57973 | -3/Research | Spotted Executioner 57973 | -3/Research | Spotted Striker 58031 | -3/Research | Entered Testing 58054 | -3/Testing | Lost 13 parts (3p3n6u1w) 58079 | -3/Testing | Found Spectral Analyzer 58153 | -3/Testing | Found Prototype Energy Gun 58153 | -3/Testing | Identified Tachyon Dispersion Ray 58194 | -3/Testing | Found Prototype Device 58194 | -3/Testing | Identified 2N-1CE's Frost Array 58278 | -3/Testing | Core integrity fell below 50% 58304 | -3/Testing | Build established: Assassin 58320 | -3/Testing | Core integrity fell below 20% 58327 | -3/Testing | System corruption reached 10% 58350 | -3/Testing | Lost 5 parts (1p1n2u1w) 58352 | -3/Testing | Destroyed by P-80 Master with Gamma Rifle Last Messages --------------- 58300_ R-10 Processor collects 2N-1CE's Frost Array. 58301_ R-10 Processor collects Corrupted Flexi-carbon Leg. 58302_ R-10 Processor collects Imp. Core Shielding. 58306_ System corrupted: Adv. Medium Treads rejected. 58309_ R-10 Processor collects Adv. Medium Treads. 58311_ Imp. Terrain Scanner destroyed. 58312_ Acquired 61 matter. 58316_ Critical hit (Burn: +50). 58319_ Antiparticle Suffusor explodes. 58319_ Terminal disabled. 58319_ K-01 Serf destroyed. 58319_ Exp. Hacking Suite destroyed. 58319_ Gravity Flail destroyed. 58319_ R-10 Processor destroyed. 58320_ G-67 Veteran system terminally corrupted. 58323_ P-80 Master resets P-80 Master, system corruption cleaned. 58346_ P-80 Master suffers critical hit (Impale). 58346_ Destroyed Imp. Antigrav System. 58346_ Destroyed Sml. Battery. 58351_ System corrupted: Adv. KE Penetrator rejected. Map ----- +----------------------------------------------------+ | | | | | | | | | | | | | | | | | ???????????#??###??##???###?#?################? | | ?????????????#??#??##?######## # | | ??????????????#??##??######### """ """ """ # | | ?????????#?##?##?############# """ """ """ # | | ?????????##????#?############# """ """ """ # | | ????????#?#?##?############### # | | ???????????#??#####?########## """ """ """ # | | ?????????#?#######?########### """ """ """ # | | ????????###################### """ """ """ # | | ?????????######## ^ ##### # | | ????????######### """ #############+######## | | ???????########## """ ########### + | | ???????########## """ ^ # # ## " | | ??????########### """ # """ """ #| ## "" | | ??????########### """ # """ """ + ## ] "" | | ????????#########^"""^ # """ """!#! ## / "" | | ????############# """ # """ """ # T#! | | ?????############ p@ # """ """ # ######+ | | ???#?################p#### """ """ # | | ???############### # """ """ # | | ??##?############# # """ """ # | | ??###?############ / """ """ # | | ??##?############# # ###########+ | | #?#?################# # ####### | | ??################### # ####### "" | | ?########?####"#""" # ###############"" "" | | ???#?##########" " + ########"" "" | | ############## # ########"T | | #??########### " # ########"" "" | | ?###?#####?####" " # ########"" "" | | ?##?##########"#""" # ### ########## "" | | ??#??###?##?######### ### ########## | | ?#?#?##?#?########### ^ ^### ############### | | ??##?#??##?########## ### #"""########### | | ?#?########?######### ##" #"" " ######### | | ???###?##?##?######## # " #" "######## | | ????#######?#?####### # " #" "####### | | ????#?#?############# # " # "####### | | ?????#########?###### # "% " " ###### | | ?????##?#?########### # " """""""" ###### | | ??????? ? ? ######## =%# " " ###### | | ?????????? ######## !# " ""###### | +----------------------------------------------------+ Best States ------------- Heat Dissipation 236 Coolant Potential 100 Energy Generation 67 Energy Capacity 840 Matter Stores 300 Matter Capacity 300 Sight Range 24 Robot Scan Range 20 Terrain Scan Range 16 Terrain Scan Density 1010 Jamming Range 16 Armor Coverage 1650 Resistance: KI 20 Resistance: TH 10 Point Defense Rating 240 Weapon Cycling 20 Evasion (%) 55 Targeting Accuracy 12 Core Analysis 8 Recoil Reduction 5 Offensive Hacking 16 Defensive Hacking 11 Authchip Count 1 Item Schematics ----------------- Seismic Detector | -9/Materials | Scanalyzed Cooling System | -9/Materials | Scanalyzed Hacking Suite | -9/Materials | Scanalyzed Xenon Bombardment Thruster | -7/Zion | Archive Fusion Compressor | -7/Zion | Archive Shock Absorption System | -7/Zion | Archive Lgt. Angular Momentum Engine | -7/Zion | Archive System Restoration Module | -7/Zion | Archive Remote Shield | -7/Zion | Archive Imp. Shield Generator | -7/Zion | Archive Imp. Remote Datajack | -7/Zion | Archive Imp. Kinecellerator | -7/Zion | Archive Core Analyzer | -7/Zion | Archive Imp. Reaction Control System | -7/Zion | Archive Adv. Terrain Scan Processor | -7/Zion | Archive Adv. Sensor Array | -7/Zion | Archive Transmission Jammer | -7/Zion | Archive Hpw. Shock Rifle | -7/Zion | Archive Exp. Sensor Array | -6/Factory | Scanalyzed Combat Drone Bay | -6/Data Miner | Free Lgt. Regenerative Plating | -6/Data Miner | Free Cld. Gravmag System | -6/Data Miner | Free Prc. Matter Filter | -6/Data Miner | Free Ionic Axe | -6/Data Miner | Free Imp. Linear Gravjet | -6/Data Miner | Free Imp. Cloaking Device | -6/Data Miner | Free Force Lance | -6/Data Miner | Free Lrn. Proton Cannon | -6/Data Miner | Free Hyp. Mass Driver | -6/Data Miner | Free Adv. Force Field | -4/Factory | Hacked Enh. Nova Cannon | -3/Research | Hacked Quantum Capacitor | -3/Testing | Hacked Robot Schematics ------------------ M-13 Machinist | -10/Materials | Hacked T-07 Excavator | -7/Zion | Archive S-27 Virus | -7/Zion | Archive X-82 Rainmaker | -7/Zion | Archive Y-54 Guardian | -6/Data Miner | Free R-10 Processor | -6/Data Miner | Free B-48 Gladiator | -6/Data Miner | Free A-15 Conveyor | -6/Data Miner | Free Fabricated ------------ Exp. Sensor Array | x1 | -6/Factory Adv. Heavy Siege Treads | x1 | -5/Factory | Preloaded Adv. Force Field | x2 | -3/Research Repaired ---------- Assault Rifle | 24% | -10/Materials Lgt. Treads | 25% | -10/Materials Imp. Light Armor Plating | 23% | -9/Materials Imp. Assault Rifle | 62% | -9/Materials Hvy. Assault Rifle | 66% | -9/Materials Cooling System | 70% | -8/Materials Hrd. Medium Armor Plating | 17% | -8/Materials Arm. Treads | 22% | -7/Factory Arm. Treads | 12% | -6/Factory Hvy. Treads | 14% | -5/Factory Adv. Plasma Rifle | 13% | -4/Factory Studied --------- Lgt. Treads | -9/Materials | Hacked Mni. Grenade Launcher | -9/Materials | Hacked Hvy. Assault Rifle | -9/Materials | Hacked Arm. Treads | -8/Materials | Hacked Minigun | -8/Materials | Hacked Adv. Treads | -8/Materials | Hacked Hvy. Particle Cannon | -8/Materials | Hacked Med. Treads | -7/Factory | Hacked Alien Tech Used ----------------- None Achievements -------------- Freedom! The Robot, The Myth, The Legend Challenges ------------ None Game ------ Seed SwarmMolecularNeutralizer Manual? 0 Play Time 07:56:01 Cumulative 404.0 hours Start 2025.11.16 @ 18:10:57 End 2025.11.17 @ 17:18:21 Sessions 3 Manual Loads 0 Difficulty Rogue Special Mode None Game No. 144 Rogue 144 Adventurer 0 Explorer 0 Win Type - Total 8 Types 4/0/2/1/0/0/1/0/0/0 Lore% 66 Gallery% 78 Achievement% 56 Wizard Run 0 Options --------- Layout 0 ASCII 0 Keyboard 0 Movement Numpad Keybinds 1 Fullscreen 2 Font 18/X11 Map View 76x50 Zoom Use 0% Tactical HUD 1 Map Filters NONE Filters NONE Steam 1 RUN: 6ba207d6-07be-4635-a0e2-40bb74e46bcc